{"text_format":"1","workbook":"xlsx","n_sheets":12,"sheets":["Home","Realmlist","Blacksmithing","Leatherworking","Tailoring","Alchemy","Engineering","Jewelcrafting","Enchanting","Inscription","Cooking","Materials"],"not_rendered":{"charts":0,"images":0,"macros":1,"external_links":0,"defined_names":13,"comments":0,"pivot_tables":0},"unopened":[],"bounds":{"document_bytes":16777216,"sheet_cells":100000,"rows_first":2000,"rows_last":500,"rows_between":2000,"halvings":0,"cell_chars":16384,"cell_head_chars":4096},"cells_cut":0,"cells_raw":0,"read":"whole","date_system":"1900"}

{"sheet":"Home","index":0,"n_rows":35,"n_cols":3,"rows_kept":35,"cut":false,"hidden":false,"merged":[[0,0,0,1],[2,0,2,1],[31,0,31,2],[34,0,34,2]]}
["Stede's WoW Goldmaking Spreadsheet Sandbox - WoD Edition"]
[]
["Home Page & Settings"]
[]
["For Help, See the Tutorial:","http://youtu.be/UfIyGimfIZo"]
[]
["WoWuction Token:"]
["Server:","================"]
[]
["Last Updated (GMT):"]
[]
[]
[]
[]
[]
["Full Wowuction URL Override:"]
["(Only Use These if Your Realm is Not Listed)"]
[]
["List of Wowuction Data Functions","Description","Example"]
["wowMktPrice","Current Wowuction Market Price (if none, then Median Price below is used)",{"$f":"wowMktPrice(\"Ghost Iron Ore\")","v":0}]
["wowMed14Price","Median Market Price Over the Last 14 Days",{"$f":"wowmed14price(\"Ghost Iron Ore\")","v":0}]
["wowStd14Price","Standard Deviation of the Median Market Price",{"$f":"wowStd14Price(\"Ghost Iron Ore\")","v":0}]
["wowMinPrice","Current Minimum Price",{"$f":"wowMinPrice(\"Ghost Iron Ore\")","v":0}]
["wowQck","Binary Check for at least 1 Currently Posted",{"$f":"wowQck(\"Ghost Iron Ore\")","v":0}]
["wowQty","Current Quantity Posted",{"$f":"wowQty(\"Ghost Iron Ore\")","v":0}]
["wowPosted","Average Daily Posted",{"$f":"wowPosted(\"Ghost Iron Ore\")","v":0}]
["wowSold","Average Estimated Daily Sold",{"$f":"wowSold(\"Ghost Iron Ore\")","v":0}]
["wowDemand","Estimated Demand",{"$f":"wowDemand(\"Ghost Iron Ore\")","v":0}]
["wowID","Pulls the itemID based on the item Name passed from Wowuction",{"$f":"wowID(\"Ghost Iron Ore\")","v":0}]
[]
["Quick Instructions"]
["The Spreadsheet now uses data from Wowuction - to use the spreadsheet, just get your token from Wowuction (watch tutorial video in link above for help), and enter it in B7.  Then select your server and faction just below that.  Last, Press the Get Data button to import the latest data (data only updates roughly once every 65 minutes, so try not to Get Data more than hourly).  On Each Profession Sheet, you can manually set your Cooldown Yield and your Daily Work Order Yield.  This will impact your Materials Costs, and thus, your Profits.  Beyond the sheets that are built in, you can use the above functions to build your own Spreadsheet, however you like."]
[]
["Errata"]
["Known issues currently include the absence of Alchemical Catalysts from the Blizzard AH API - Recommend using the CD Pricing (at the very least) for that profession sheet.  Also, the low level crafted blue gear is not showing up in the exports.  I'm waiting to hear back on what's going on there, but those items will not have data until that issue is resolved.  Last, Epic BoEs may not have their Item Names populating.  If you want to Sandbox any of those BoEs, you can enter in the numerical ItemID in place of the Item Name, and the Spreadsheet should still pull the info."]

{"sheet":"Realmlist","index":1,"n_rows":525,"n_cols":6,"rows_kept":525,"cut":false,"hidden":true,"merged":[]}
[null,null,null,null,"DO NOT EDIT"]
[]
[null,null,null,null,"================","================"]
[null,null,null,null,"US SERVERS","US SERVERS"]
[null,null,null,null,"================","================"]
[]
[null,"Y",null,"Alliance","Aegwynn",{"$f":"CONCATENATE(\"US - \",E7)","v":"US - Aegwynn"}]
[null,"N",null,"Horde","Aerie Peak","US - Aerie Peak"]
[null,null,null,null,"Agamaggan","US - Agamaggan"]
[null,null,null,null,"Aggramar","US - Aggramar"]
[null,null,null,null,"Akama","US - Akama"]
[null,null,null,null,"Alexstrasza","US - Alexstrasza"]
[null,null,null,null,"Alleria","US - Alleria"]
[null,null,null,null,"Altar of Storms","US - Altar of Storms"]
[null,null,null,null,"Alterac Mountains","US - Alterac Mountains"]
[null,null,null,null,"Aman'Thul","US - Aman'Thul"]
[null,null,null,null,"Andorhal","US - Andorhal"]
[null,null,null,null,"Anetheron","US - Anetheron"]
[null,null,null,null,"Antonidas","US - Antonidas"]
[null,null,null,null,"Anub'arak","US - Anub'arak"]
[null,null,null,null,"Anvilmar","US - Anvilmar"]
[null,null,null,null,"Arathor","US - Arathor"]
[null,null,null,null,"Archimonde","US - Archimonde"]
[null,null,null,null,"Area 52","US - Area 52"]
[null,null,null,null,"Argent Dawn","US - Argent Dawn"]
[null,null,null,null,"Arthas","US - Arthas"]
[null,null,null,null,"Arygos","US - Arygos"]
[null,null,null,null,"Auchindoun","US - Auchindoun"]
[null,null,null,null,"Azgalor","US - Azgalor"]
[null,null,null,null,"Azjol-Nerub","US - Azjol-Nerub"]
[null,null,null,null,"Azralon","US - Azralon"]
[null,null,null,null,"Azshara","US - Azshara"]
[null,null,null,null,"Azuremyst","US - Azuremyst"]
[null,null,null,null,"Baelgun","US - Baelgun"]
[null,null,null,null,"Balnazzar","US - Balnazzar"]
[null,null,null,null,"Barthilas","US - Barthilas"]
[null,null,null,null,"Black Dragonflight","US - Black Dragonflight"]
[null,null,null,null,"Blackhand","US - Blackhand"]
[null,null,null,null,"Blackrock","US - Blackrock"]
[null,null,null,null,"Blackwater Raiders","US - Blackwater Raiders"]
[null,null,null,null,"Blackwing Lair","US - Blackwing Lair"]
[null,null,null,null,"Blade's Edge","US - Blade's Edge"]
[null,null,null,null,"Bladefist","US - Bladefist"]
[null,null,null,null,"Bleeding Hollow","US - Bleeding Hollow"]
[null,null,null,null,"Blood Furnace","US - Blood Furnace"]
[null,null,null,null,"Bloodhoof","US - Bloodhoof"]
[null,null,null,null,"Bloodscalp","US - Bloodscalp"]
[null,null,null,null,"Bonechewer","US - Bonechewer"]
[null,null,null,null,"Borean Tundra","US - Borean Tundra"]
[null,null,null,null,"Boulderfist","US - Boulderfist"]
[null,null,null,null,"Bronzebeard","US - Bronzebeard"]
[null,null,null,null,"Burning Blade","US - Burning Blade"]
[null,null,null,null,"Burning Legion","US - Burning Legion"]
[null,null,null,null,"Caelestrasz","US - Caelestrasz"]
[null,null,null,null,"Cairne","US - Cairne"]
[null,null,null,null,"Cenarion Circle","US - Cenarion Circle"]
[null,null,null,null,"Cenarius","US - Cenarius"]
[null,null,null,null,"Cho'gall","US - Cho'gall"]
[null,null,null,null,"Chromaggus","US - Chromaggus"]
[null,null,null,null,"Coilfang","US - Coilfang"]
[null,null,null,null,"Crushridge","US - Crushridge"]
[null,null,null,null,"Daggerspine","US - Daggerspine"]
[null,null,null,null,"Dalaran","US - Dalaran"]
[null,null,null,null,"Dalvengyr","US - Dalvengyr"]
[null,null,null,null,"Dark Iron","US - Dark Iron"]
[null,null,null,null,"Darkspear","US - Darkspear"]
[null,null,null,null,"Darrowmere","US - Darrowmere"]
[null,null,null,null,"Dath'Remar","US - Dath'Remar"]
[null,null,null,null,"Dawnbringer","US - Dawnbringer"]
[null,null,null,null,"Deathwing","US - Deathwing"]
[null,null,null,null,"Demon Soul","US - Demon Soul"]
[null,null,null,null,"Dentarg","US - Dentarg"]
[null,null,null,null,"Destromath","US - Destromath"]
[null,null,null,null,"Dethecus","US - Dethecus"]
[null,null,null,null,"Detheroc",{"$f":"CONCATENATE(\"US - \",E75)","v":"US - Detheroc"}]
[null,null,null,null,"Doomhammer","US - Doomhammer"]
[null,null,null,null,"Draenor","US - Draenor"]
[null,null,null,null,"Dragonblight","US - Dragonblight"]
[null,null,null,null,"Dragonmaw","US - Dragonmaw"]
[null,null,null,null,"Drak'Tharon","US - Drak'Tharon"]
[null,null,null,null,"Drak'thul","US - Drak'thul"]
[null,null,null,null,"Draka","US - Draka"]
[null,null,null,null,"Drakkari","US - Drakkari"]
[null,null,null,null,"Dreadmaul","US - Dreadmaul"]
[null,null,null,null,"Drenden","US - Drenden"]
[null,null,null,null,"Dunemaul","US - Dunemaul"]
[null,null,null,null,"Durotan","US - Durotan"]
[null,null,null,null,"Duskwood","US - Duskwood"]
[null,null,null,null,"Earthen Ring","US - Earthen Ring"]
[null,null,null,null,"Echo Isles","US - Echo Isles"]
[null,null,null,null,"Eitrigg","US - Eitrigg"]
[null,null,null,null,"Eldre'Thalas","US - Eldre'Thalas"]
[null,null,null,null,"Elune","US - Elune"]
[null,null,null,null,"Emerald Dream","US - Emerald Dream"]
[null,null,null,null,"Eonar","US - Eonar"]
[null,null,null,null,"Eredar","US - Eredar"]
[null,null,null,null,"Executus","US - Executus"]
[null,null,null,null,"Exodar","US - Exodar"]
[null,null,null,null,"Farstriders","US - Farstriders"]
[null,null,null,null,"Feathermoon","US - Feathermoon"]
[null,null,null,null,"Fenris","US - Fenris"]
[null,null,null,null,"Firetree","US - Firetree"]
[null,null,null,null,"Fizzcrank","US - Fizzcrank"]
[null,null,null,null,"Frostmane","US - Frostmane"]
[null,null,null,null,"Frostmourne","US - Frostmourne"]
[null,null,null,null,"Frostwolf","US - Frostwolf"]
[null,null,null,null,"Galakrond","US - Galakrond"]
[null,null,null,null,"Gallywix","US - Gallywix"]
[null,null,null,null,"Garithos","US - Garithos"]
[null,null,null,null,"Garona","US - Garona"]
[null,null,null,null,"Garrosh","US - Garrosh"]
[null,null,null,null,"Ghostlands","US - Ghostlands"]
[null,null,null,null,"Gilneas","US - Gilneas"]
[null,null,null,null,"Gnomeregan","US - Gnomeregan"]
[null,null,null,null,"Goldrinn","US - Goldrinn"]
[null,null,null,null,"Gorefiend","US - Gorefiend"]
[null,null,null,null,"Gorgonnash","US - Gorgonnash"]
[null,null,null,null,"Greymane","US - Greymane"]
[null,null,null,null,"Grizzly Hills","US - Grizzly Hills"]
[null,null,null,null,"Gul'dan","US - Gul'dan"]
[null,null,null,null,"Gundrak","US - Gundrak"]
[null,null,null,null,"Gurubashi","US - Gurubashi"]
[null,null,null,null,"Hakkar","US - Hakkar"]
[null,null,null,null,"Haomarush","US - Haomarush"]
[null,null,null,null,"Hellscream","US - Hellscream"]
[null,null,null,null,"Hydraxis","US - Hydraxis"]
[null,null,null,null,"Hyjal","US - Hyjal"]
[null,null,null,null,"Icecrown","US - Icecrown"]
[null,null,null,null,"Illidan","US - Illidan"]
[null,null,null,null,"Jaedenar","US - Jaedenar"]
[null,null,null,null,"Jubei'Thos","US - Jubei'Thos"]
[null,null,null,null,"Kael'thas","US - Kael'thas"]
[null,null,null,null,"Kalecgos","US - Kalecgos"]
[null,null,null,null,"Kargath","US - Kargath"]
[null,null,null,null,"Kel'Thuzad","US - Kel'Thuzad"]
[null,null,null,null,"Khadgar","US - Khadgar"]
[null,null,null,null,"Khaz'goroth","US - Khaz'goroth"]
[null,null,null,null,"Khaz Modan","US - Khaz Modan"]
[null,null,null,null,"Kil'jaeden","US - Kil'jaeden"]
[null,null,null,null,"Kilrogg","US - Kilrogg"]
[null,null,null,null,"Kirin Tor","US - Kirin Tor"]
[null,null,null,null,"Korgath","US - Korgath"]
[null,null,null,null,"Korialstrasz","US - Korialstrasz"]
[null,null,null,null,"Kul Tiras","US - Kul Tiras"]
[null,null,null,null,"Laughing Skull","US - Laughing Skull"]
[null,null,null,null,"Lethon","US - Lethon"]
[null,null,null,null,"Lightbringer",{"$f":"CONCATENATE(\"US - \",E147)","v":"US - Lightbringer"}]
[null,null,null,null,"Lightning's Blade","US - Lightning's Blade"]
[null,null,null,null,"Lightninghoof","US - Lightninghoof"]
[null,null,null,null,"Llane","US - Llane"]
[null,null,null,null,"Lothar","US - Lothar"]
[null,null,null,null,"Madoran","US - Madoran"]
[null,null,null,null,"Maelstrom","US - Maelstrom"]
[null,null,null,null,"Magtheridon","US - Magtheridon"]
[null,null,null,null,"Maiev","US - Maiev"]
[null,null,null,null,"Mal'Ganis","US - Mal'Ganis"]
[null,null,null,null,"Malfurion","US - Malfurion"]
[null,null,null,null,"Malorne","US - Malorne"]
[null,null,null,null,"Malygos","US - Malygos"]
[null,null,null,null,"Mannoroth","US - Mannoroth"]
[null,null,null,null,"Medivh","US - Medivh"]
[null,null,null,null,"Misha","US - Misha"]
[null,null,null,null,"Mok'Nathal","US - Mok'Nathal"]
[null,null,null,null,"Moon Guard","US - Moon Guard"]
[null,null,null,null,"Moonrunner","US - Moonrunner"]
[null,null,null,null,"Mug'thol","US - Mug'thol"]
[null,null,null,null,"Muradin","US - Muradin"]
[null,null,null,null,"Nagrand","US - Nagrand"]
[null,null,null,null,"Nathrezim","US - Nathrezim"]
[null,null,null,null,"Nazgrel","US - Nazgrel"]
[null,null,null,null,"Nazjatar","US - Nazjatar"]
[null,null,null,null,"Nemesis","US - Nemesis"]
[null,null,null,null,"Ner'zhul","US - Ner'zhul"]
[null,null,null,null,"Nesingwary","US - Nesingwary"]
[null,null,null,null,"Nordrassil","US - Nordrassil"]
[null,null,null,null,"Norgannon","US - Norgannon"]
[null,null,null,null,"Onyxia","US - Onyxia"]
[null,null,null,null,"Perenolde","US - Perenolde"]
[null,null,null,null,"Proudmoore","US - Proudmoore"]
[null,null,null,null,"Quel'dorei","US - Quel'dorei"]
[null,null,null,null,"Quel'Thalas","US - Quel'Thalas"]
[null,null,null,null,"Ragnaros","US - Ragnaros"]
[null,null,null,null,"Ravencrest","US - Ravencrest"]
[null,null,null,null,"Ravenholdt","US - Ravenholdt"]
[null,null,null,null,"Rexxar","US - Rexxar"]
[null,null,null,null,"Rivendare","US - Rivendare"]
[null,null,null,null,"Runetotem","US - Runetotem"]
[null,null,null,null,"Sargeras","US - Sargeras"]
[null,null,null,null,"Saurfang","US - Saurfang"]
[null,null,null,null,"Scarlet Crusade","US - Scarlet Crusade"]
[null,null,null,null,"Scilla","US - Scilla"]
[null,null,null,null,"Sen'jin","US - Sen'jin"]
[null,null,null,null,"Sentinels","US - Sentinels"]
[null,null,null,null,"Shadow Council","US - Shadow Council"]
[null,null,null,null,"Shadowmoon","US - Shadowmoon"]
[null,null,null,null,"Shadowsong","US - Shadowsong"]
[null,null,null,null,"Shandris","US - Shandris"]
[null,null,null,null,"Shattered Halls","US - Shattered Halls"]
[null,null,null,null,"Shattered Hand","US - Shattered Hand"]
[null,null,null,null,"Shu'halo","US - Shu'halo"]
[null,null,null,null,"Silver Hand","US - Silver Hand"]
[null,null,null,null,"Silvermoon","US - Silvermoon"]
[null,null,null,null,"Sisters of Elune","US - Sisters of Elune"]
[null,null,null,null,"Skullcrusher","US - Skullcrusher"]
[null,null,null,null,"Skywall","US - Skywall"]
[null,null,null,null,"Smolderthorn","US - Smolderthorn"]
[null,null,null,null,"Spinebreaker","US - Spinebreaker"]
[null,null,null,null,"Spirestone","US - Spirestone"]
[null,null,null,null,"Staghelm","US - Staghelm"]
[null,null,null,null,"Steamwheedle Cartel","US - Steamwheedle Cartel"]
[null,null,null,null,"Stonemaul","US - Stonemaul"]
[null,null,null,null,"Stormrage","US - Stormrage"]
[null,null,null,null,"Stormreaver","US - Stormreaver"]
[null,null,null,null,"Stormscale","US - Stormscale"]
[null,null,null,null,"Suramar","US - Suramar"]
[null,null,null,null,"Tanaris",{"$f":"CONCATENATE(\"US - \",E216)","v":"US - Tanaris"}]
[null,null,null,null,"Terenas","US - Terenas"]
[null,null,null,null,"Terokkar","US - Terokkar"]
[null,null,null,null,"Thaurissan","US - Thaurissan"]
[null,null,null,null,"The Forgotten Coast","US - The Forgotten Coast"]
[null,null,null,null,"The Scryers","US - The Scryers"]
[null,null,null,null,"The Underbog","US - The Underbog"]
[null,null,null,null,"The Venture Co","US - The Venture Co"]
[null,null,null,null,"Thorium Brotherhood","US - Thorium Brotherhood"]
[null,null,null,null,"Thrall","US - Thrall"]
[null,null,null,null,"Thunderhorn","US - Thunderhorn"]
[null,null,null,null,"Thunderlord","US - Thunderlord"]
[null,null,null,null,"Tichondrius","US - Tichondrius"]
[null,null,null,null,"Tol Barad","US - Tol Barad"]
[null,null,null,null,"Tortheldrin","US - Tortheldrin"]
[null,null,null,null,"Trollbane","US - Trollbane"]
[null,null,null,null,"Turalyon","US - Turalyon"]
[null,null,null,null,"Twisting Nether","US - Twisting Nether"]
[null,null,null,null,"Uldaman","US - Uldaman"]
[null,null,null,null,"Uldum","US - Uldum"]
[null,null,null,null,"Undermine","US - Undermine"]
[null,null,null,null,"Ursin","US - Ursin"]
[null,null,null,null,"Uther","US - Uther"]
[null,null,null,null,"Vashj","US - Vashj"]
[null,null,null,null,"Vek'nilash","US - Vek'nilash"]
[null,null,null,null,"Velen","US - Velen"]
[null,null,null,null,"Warsong","US - Warsong"]
[null,null,null,null,"Whisperwind","US - Whisperwind"]
[null,null,null,null,"Wildhammer","US - Wildhammer"]
[null,null,null,null,"Windrunner","US - Windrunner"]
[null,null,null,null,"Winterhoof","US - Winterhoof"]
[null,null,null,null,"Wyrmrest Accord","US - Wyrmrest Accord"]
[null,null,null,null,"Ysera","US - Ysera"]
[null,null,null,null,"Ysondre","US - Ysondre"]
[null,null,null,null,"Zangarmarsh","US - Zangarmarsh"]
[null,null,null,null,"Zul'jin","US - Zul'jin"]
[null,null,null,null,"Zuluhed","US - Zuluhed"]
[]
[null,null,null,null,"================","================"]
[null,null,null,null,"EU SERVERS","EU SERVERS"]
[null,null,null,null,"================","================"]
[]
[null,null,null,null,"Aegwynn",{"$f":"CONCATENATE(\"EU - \",E258)","v":"EU - Aegwynn"}]
[null,null,null,null,"Aerie Peak","EU - Aerie Peak"]
[null,null,null,null,"Agamaggan","EU - Agamaggan"]
[null,null,null,null,"Aggra (Português)","EU - Aggra (Português)"]
[null,null,null,null,"Aggramar","EU - Aggramar"]
[null,null,null,null,"Ahn'Qiraj","EU - Ahn'Qiraj"]
[null,null,null,null,"Al'Akir","EU - Al'Akir"]
[null,null,null,null,"Alexstrasza","EU - Alexstrasza"]
[null,null,null,null,"Alleria","EU - Alleria"]
[null,null,null,null,"Alonsus","EU - Alonsus"]
[null,null,null,null,"Aman'Thul","EU - Aman'Thul"]
[null,null,null,null,"Ambossar","EU - Ambossar"]
[null,null,null,null,"Anachronos","EU - Anachronos"]
[null,null,null,null,"Anetheron","EU - Anetheron"]
[null,null,null,null,"Antonidas","EU - Antonidas"]
[null,null,null,null,"Anub'arak","EU - Anub'arak"]
[null,null,null,null,"Arak-arahm","EU - Arak-arahm"]
[null,null,null,null,"Arathi","EU - Arathi"]
[null,null,null,null,"Arathor","EU - Arathor"]
[null,null,null,null,"Archimonde","EU - Archimonde"]
[null,null,null,null,"Area 52","EU - Area 52"]
[null,null,null,null,"Argent Dawn","EU - Argent Dawn"]
[null,null,null,null,"Arthas","EU - Arthas"]
[null,null,null,null,"Arygos","EU - Arygos"]
[null,null,null,null,"Ashenvale","EU - Ashenvale"]
[null,null,null,null,"Aszune","EU - Aszune"]
[null,null,null,null,"Auchindoun","EU - Auchindoun"]
[null,null,null,null,"Azjol-Nerub","EU - Azjol-Nerub"]
[null,null,null,null,"Azshara","EU - Azshara"]
[null,null,null,null,"Азурегос","EU - Азурегос"]
[null,null,null,null,"Azuregos","EU - Azuregos"]
[null,null,null,null,"Azuremyst","EU - Azuremyst"]
[null,null,null,null,"Baelgun","EU - Baelgun"]
[null,null,null,null,"Balnazzar","EU - Balnazzar"]
[null,null,null,null,"Blackhand","EU - Blackhand"]
[null,null,null,null,"Blackmoore","EU - Blackmoore"]
[null,null,null,null,"Blackrock","EU - Blackrock"]
[null,null,null,null,"Blackscar","EU - Blackscar"]
[null,null,null,null,"Blade's Edge","EU - Blade's Edge"]
[null,null,null,null,"Bladefist","EU - Bladefist"]
[null,null,null,null,"Bloodfeather","EU - Bloodfeather"]
[null,null,null,null,"Bloodhoof","EU - Bloodhoof"]
[null,null,null,null,"Bloodscalp","EU - Bloodscalp"]
[null,null,null,null,"Blutkessel","EU - Blutkessel"]
[null,null,null,null,"Booty Bay","EU - Booty Bay"]
[null,null,null,null,"Borean Tundra","EU - Borean Tundra"]
[null,null,null,null,"Boulderfist","EU - Boulderfist"]
[null,null,null,null,"Bronze Dragonflight","EU - Bronze Dragonflight"]
[null,null,null,null,"Bronzebeard","EU - Bronzebeard"]
[null,null,null,null,"Burning Blade","EU - Burning Blade"]
[null,null,null,null,"Burning Legion","EU - Burning Legion"]
[null,null,null,null,"Burning Steppes","EU - Burning Steppes"]
[null,null,null,null,"C'Thun","EU - C'Thun"]
[null,null,null,null,"Chamber of Aspects","EU - Chamber of Aspects"]
[null,null,null,null,"Chants éternels","EU - Chants éternels"]
[null,null,null,null,"Cho'gall","EU - Cho'gall"]
[null,null,null,null,"Chromaggus","EU - Chromaggus"]
[null,null,null,null,"Colinas Pardas","EU - Colinas Pardas"]
[null,null,null,null,"Confrérie du Thorium","EU - Confrérie du Thorium"]
[null,null,null,null,"Conseil des Ombres","EU - Conseil des Ombres"]
[null,null,null,null,"Crushridge","EU - Crushridge"]
[null,null,null,null,"Culte de la Rive noire","EU - Culte de la Rive noire"]
[null,null,null,null,"Daggerspine","EU - Daggerspine"]
[null,null,null,null,"Dalaran","EU - Dalaran"]
[null,null,null,null,"Dalvengyr",{"$f":"CONCATENATE(\"EU - \",E322)","v":"EU - Dalvengyr"}]
[null,null,null,null,"Darkmoon Faire","EU - Darkmoon Faire"]
[null,null,null,null,"Darksorrow","EU - Darksorrow"]
[null,null,null,null,"Darkspear","EU - Darkspear"]
[null,null,null,null,"Das Konsortium","EU - Das Konsortium"]
[null,null,null,null,"Das Syndikat","EU - Das Syndikat"]
[null,null,null,null,"Deathguard","EU - Deathguard"]
[null,null,null,null,"Deathweaver","EU - Deathweaver"]
[null,null,null,null,"Deathwing","EU - Deathwing"]
[null,null,null,null,"Deepholm","EU - Deepholm"]
[null,null,null,null,"Defias Brotherhood","EU - Defias Brotherhood"]
[null,null,null,null,"Dentarg","EU - Dentarg"]
[null,null,null,null,"Der Mithrilorden","EU - Der Mithrilorden"]
[null,null,null,null,"Der Rat von Dalaran","EU - Der Rat von Dalaran"]
[null,null,null,null,"Der abyssische Rat","EU - Der abyssische Rat"]
[null,null,null,null,"Destromath","EU - Destromath"]
[null,null,null,null,"Dethecus","EU - Dethecus"]
[null,null,null,null,"Die Aldor","EU - Die Aldor"]
[null,null,null,null,"Die Arguswacht","EU - Die Arguswacht"]
[null,null,null,null,"Die Nachtwache","EU - Die Nachtwache"]
[null,null,null,null,"Die Silberne Hand","EU - Die Silberne Hand"]
[null,null,null,null,"Die Todeskrallen","EU - Die Todeskrallen"]
[null,null,null,null,"Die ewige Wacht","EU - Die ewige Wacht"]
[null,null,null,null,"Doomhammer","EU - Doomhammer"]
[null,null,null,null,"Draenor","EU - Draenor"]
[null,null,null,null,"Dragonblight","EU - Dragonblight"]
[null,null,null,null,"Dragonmaw","EU - Dragonmaw"]
[null,null,null,null,"Drak'thul","EU - Drak'thul"]
[null,null,null,null,"Drek'Thar","EU - Drek'Thar"]
[null,null,null,null,"Dun Modr","EU - Dun Modr"]
[null,null,null,null,"Dun Morogh","EU - Dun Morogh"]
[null,null,null,null,"Dunemaul","EU - Dunemaul"]
[null,null,null,null,"Durotan","EU - Durotan"]
[null,null,null,null,"Earthen Ring","EU - Earthen Ring"]
[null,null,null,null,"Echsenkessel","EU - Echsenkessel"]
[null,null,null,null,"Eitrigg","EU - Eitrigg"]
[null,null,null,null,"Eldre'Thalas","EU - Eldre'Thalas"]
[null,null,null,null,"Elune","EU - Elune"]
[null,null,null,null,"Emerald Dream","EU - Emerald Dream"]
[null,null,null,null,"Emeriss","EU - Emeriss"]
[null,null,null,null,"Eonar","EU - Eonar"]
[null,null,null,null,"Eredar","EU - Eredar"]
[null,null,null,null,"Eversong","EU - Eversong"]
[null,null,null,null,"Executus","EU - Executus"]
[null,null,null,null,"Exodar","EU - Exodar"]
[null,null,null,null,"Festung der Stürme","EU - Festung der Stürme"]
[null,null,null,null,"Fordragon","EU - Fordragon"]
[null,null,null,null,"Forscherliga","EU - Forscherliga"]
[null,null,null,null,"Frostmane","EU - Frostmane"]
[null,null,null,null,"Frostmourne","EU - Frostmourne"]
[null,null,null,null,"Frostwhisper","EU - Frostwhisper"]
[null,null,null,null,"Frostwolf","EU - Frostwolf"]
[null,null,null,null,"Galakrond","EU - Galakrond"]
[null,null,null,null,"Garona","EU - Garona"]
[null,null,null,null,"Garrosh","EU - Garrosh"]
[null,null,null,null,"Genjuros","EU - Genjuros"]
[null,null,null,null,"Ghostlands","EU - Ghostlands"]
[null,null,null,null,"Gilneas","EU - Gilneas"]
[null,null,null,null,"Goldrinn","EU - Goldrinn"]
[null,null,null,null,"Gordunni","EU - Gordunni"]
[null,null,null,null,"Gorgonnash","EU - Gorgonnash"]
[null,null,null,null,"Greymane","EU - Greymane"]
[null,null,null,null,"Grim Batol","EU - Grim Batol"]
[null,null,null,null,"Grom","EU - Grom"]
[null,null,null,null,"Gul'dan",{"$f":"CONCATENATE(\"EU - \",E386)","v":"EU - Gul'dan"}]
[null,null,null,null,"Hakkar","EU - Hakkar"]
[null,null,null,null,"Haomarush","EU - Haomarush"]
[null,null,null,null,"Hellfire","EU - Hellfire"]
[null,null,null,null,"Hellscream","EU - Hellscream"]
[null,null,null,null,"Howling Fjord","EU - Howling Fjord"]
[null,null,null,null,"Hyjal","EU - Hyjal"]
[null,null,null,null,"Illidan","EU - Illidan"]
[null,null,null,null,"Jaedenar","EU - Jaedenar"]
[null,null,null,null,"Kael'thas","EU - Kael'thas"]
[null,null,null,null,"Karazhan","EU - Karazhan"]
[null,null,null,null,"Kargath","EU - Kargath"]
[null,null,null,null,"Kazzak","EU - Kazzak"]
[null,null,null,null,"Kel'Thuzad","EU - Kel'Thuzad"]
[null,null,null,null,"Khadgar","EU - Khadgar"]
[null,null,null,null,"Khaz Modan","EU - Khaz Modan"]
[null,null,null,null,"Khaz'goroth","EU - Khaz'goroth"]
[null,null,null,null,"Kil'jaeden","EU - Kil'jaeden"]
[null,null,null,null,"Kilrogg","EU - Kilrogg"]
[null,null,null,null,"Kirin Tor","EU - Kirin Tor"]
[null,null,null,null,"Kor'gall","EU - Kor'gall"]
[null,null,null,null,"Krag'jin","EU - Krag'jin"]
[null,null,null,null,"Krasus","EU - Krasus"]
[null,null,null,null,"Kul Tiras","EU - Kul Tiras"]
[null,null,null,null,"Kult der Verdammten","EU - Kult der Verdammten"]
[null,null,null,null,"La Croisade écarlate","EU - La Croisade écarlate"]
[null,null,null,null,"Laughing Skull","EU - Laughing Skull"]
[null,null,null,null,"Les Clairvoyants","EU - Les Clairvoyants"]
[null,null,null,null,"Les Sentinelles","EU - Les Sentinelles"]
[null,null,null,null,"Lich King","EU - Lich King"]
[null,null,null,null,"Lightbringer","EU - Lightbringer"]
[null,null,null,null,"Lightning's Blade","EU - Lightning's Blade"]
[null,null,null,null,"Lordaeron","EU - Lordaeron"]
[null,null,null,null,"Los Errantes","EU - Los Errantes"]
[null,null,null,null,"Lothar","EU - Lothar"]
[null,null,null,null,"Madmortem","EU - Madmortem"]
[null,null,null,null,"Magtheridon","EU - Magtheridon"]
[null,null,null,null,"Mal'Ganis","EU - Mal'Ganis"]
[null,null,null,null,"Malfurion","EU - Malfurion"]
[null,null,null,null,"Malorne","EU - Malorne"]
[null,null,null,null,"Malygos","EU - Malygos"]
[null,null,null,null,"Mannoroth","EU - Mannoroth"]
[null,null,null,null,"Marécage de Zangar","EU - Marécage de Zangar"]
[null,null,null,null,"Mazrigos","EU - Mazrigos"]
[null,null,null,null,"Medivh","EU - Medivh"]
[null,null,null,null,"Minahonda","EU - Minahonda"]
[null,null,null,null,"Moonglade","EU - Moonglade"]
[null,null,null,null,"Mug'thol","EU - Mug'thol"]
[null,null,null,null,"Nagrand","EU - Nagrand"]
[null,null,null,null,"Nathrezim","EU - Nathrezim"]
[null,null,null,null,"Naxxramas","EU - Naxxramas"]
[null,null,null,null,"Nazjatar","EU - Nazjatar"]
[null,null,null,null,"Nefarian","EU - Nefarian"]
[null,null,null,null,"Nemesis","EU - Nemesis"]
[null,null,null,null,"Neptulon","EU - Neptulon"]
[null,null,null,null,"Ner'zhul","EU - Ner'zhul"]
[null,null,null,null,"Nera'thor","EU - Nera'thor"]
[null,null,null,null,"Nethersturm","EU - Nethersturm"]
[null,null,null,null,"Nordrassil","EU - Nordrassil"]
[null,null,null,null,"Norgannon","EU - Norgannon"]
[null,null,null,null,"Nozdormu","EU - Nozdormu"]
[null,null,null,null,"Onyxia","EU - Onyxia"]
[null,null,null,null,"Outland","EU - Outland"]
[null,null,null,null,"Perenolde","EU - Perenolde"]
[null,null,null,null,"Proudmoore",{"$f":"CONCATENATE(\"EU - \",E450)","v":"EU - Proudmoore"}]
[null,null,null,null,"Quel'Thalas","EU - Quel'Thalas"]
[null,null,null,null,"Ragnaros","EU - Ragnaros"]
[null,null,null,null,"Rajaxx","EU - Rajaxx"]
[null,null,null,null,"Rashgarroth","EU - Rashgarroth"]
[null,null,null,null,"Ravencrest","EU - Ravencrest"]
[null,null,null,null,"Ravenholdt","EU - Ravenholdt"]
[null,null,null,null,"Razuvious","EU - Razuvious"]
[null,null,null,null,"Rexxar","EU - Rexxar"]
[null,null,null,null,"Runetotem","EU - Runetotem"]
[null,null,null,null,"Sanguino","EU - Sanguino"]
[null,null,null,null,"Sargeras","EU - Sargeras"]
[null,null,null,null,"Saurfang","EU - Saurfang"]
[null,null,null,null,"Scarshield Legion","EU - Scarshield Legion"]
[null,null,null,null,"Sen'jin","EU - Sen'jin"]
[null,null,null,null,"Shadowsong","EU - Shadowsong"]
[null,null,null,null,"Shattered Halls","EU - Shattered Halls"]
[null,null,null,null,"Shattered Hand","EU - Shattered Hand"]
[null,null,null,null,"Shattrath","EU - Shattrath"]
[null,null,null,null,"Shen'dralar","EU - Shen'dralar"]
[null,null,null,null,"Silvermoon","EU - Silvermoon"]
[null,null,null,null,"Sinstralis","EU - Sinstralis"]
[null,null,null,null,"Skullcrusher","EU - Skullcrusher"]
[null,null,null,null,"Soulflayer","EU - Soulflayer"]
[null,null,null,null,"Spinebreaker","EU - Spinebreaker"]
[null,null,null,null,"Sporeggar","EU - Sporeggar"]
[null,null,null,null,"Steamwheedle Cartel","EU - Steamwheedle Cartel"]
[null,null,null,null,"Stormrage","EU - Stormrage"]
[null,null,null,null,"Stormreaver","EU - Stormreaver"]
[null,null,null,null,"Stormscale","EU - Stormscale"]
[null,null,null,null,"Sunstrider","EU - Sunstrider"]
[null,null,null,null,"Suramar","EU - Suramar"]
[null,null,null,null,"Sylvanas","EU - Sylvanas"]
[null,null,null,null,"Taerar","EU - Taerar"]
[null,null,null,null,"Talnivarr","EU - Talnivarr"]
[null,null,null,null,"Tarren Mill","EU - Tarren Mill"]
[null,null,null,null,"Teldrassil","EU - Teldrassil"]
[null,null,null,null,"Temple noir","EU - Temple noir"]
[null,null,null,null,"Terenas","EU - Terenas"]
[null,null,null,null,"Terokkar","EU - Terokkar"]
[null,null,null,null,"Terrordar","EU - Terrordar"]
[null,null,null,null,"The Maelstrom","EU - The Maelstrom"]
[null,null,null,null,"The Sha'tar","EU - The Sha'tar"]
[null,null,null,null,"The Venture Co","EU - The Venture Co"]
[null,null,null,null,"Theradras","EU - Theradras"]
[null,null,null,null,"Thermaplugg","EU - Thermaplugg"]
[null,null,null,null,"Thrall","EU - Thrall"]
[null,null,null,null,"Throk'Feroth","EU - Throk'Feroth"]
[null,null,null,null,"Thunderhorn","EU - Thunderhorn"]
[null,null,null,null,"Tichondrius","EU - Tichondrius"]
[null,null,null,null,"Tirion","EU - Tirion"]
[null,null,null,null,"Todeswache","EU - Todeswache"]
[null,null,null,null,"Trollbane","EU - Trollbane"]
[null,null,null,null,"Turalyon","EU - Turalyon"]
[null,null,null,null,"Twilight's Hammer","EU - Twilight's Hammer"]
[null,null,null,null,"Twisting Nether","EU - Twisting Nether"]
[null,null,null,null,"Tyrande","EU - Tyrande"]
[null,null,null,null,"Uldaman","EU - Uldaman"]
[null,null,null,null,"Ulduar","EU - Ulduar"]
[null,null,null,null,"Uldum","EU - Uldum"]
[null,null,null,null,"Un'Goro","EU - Un'Goro"]
[null,null,null,null,"Varimathras","EU - Varimathras"]
[null,null,null,null,"Vashj","EU - Vashj"]
[null,null,null,null,"Vek'lor","EU - Vek'lor"]
[null,null,null,null,"Vek'nilash",{"$f":"CONCATENATE(\"EU - \",E514)","v":"EU - Vek'nilash"}]
[null,null,null,null,"Vol'jin","EU - Vol'jin"]
[null,null,null,null,"Well of Eternity","EU - Well of Eternity"]
[null,null,null,null,"Wildhammer","EU - Wildhammer"]
[null,null,null,null,"Wrathbringer","EU - Wrathbringer"]
[null,null,null,null,"Xavius","EU - Xavius"]
[null,null,null,null,"Ysera","EU - Ysera"]
[null,null,null,null,"Ysondre","EU - Ysondre"]
[null,null,null,null,"Zenedar","EU - Zenedar"]
[null,null,null,null,"Zirkel des Cenarius","EU - Zirkel des Cenarius"]
[null,null,null,null,"Zul'jin","EU - Zul'jin"]
[null,null,null,null,"Zuluhed","EU - Zuluhed"]

{"sheet":"Blacksmithing","index":2,"n_rows":34,"n_cols":16,"rows_kept":34,"cut":false,"hidden":false,"merged":[]}
[]
["Blacksmithing","Truesteel Ingots","Material #1","Mat #1 Qty","Material #2","Mat #2 Qty","Total Mats Costs","Market Value","Historic Market Value","∆ MV","Profit","Profit per Reagent","ROI","Quantity Posted"]
["Epic iLvl 640 Gear",null,null,null,null,null,null,null,null,null,null,null,null,null,null,"Cooldown Yield"]
["Truesteel Armguards",100,"Raw Beast Hide",1,null,null,{"$f":"wowMktPrice(C4)*D4 + B4*$P$10","v":0},{"$f":"wowMktPrice(A4)","v":0},{"$f":"wowmed14price(A4)","v":0},{"$f":"H4-I4","v":0},{"$f":"H4-G4","v":0},{"$f":"K4/B4","v":0},{"$f":"((0.95*H4)-G4)/(G4)","v":{"$error":"#DIV/0!"}},{"$f":"wowQty(A4)","v":0},null,4]
["Truesteel Boots",100,"Sumptuous Fur",2,null,null,{"$f":"wowMktPrice(C5)*D5 + B5*$P$10","v":0},0,{"$f":"wowmed14price(A5)","v":0},{"$f":"H5-I5","v":0},{"$f":"H5-G5","v":0},{"$f":"K5/B5","v":0},{"$f":"((0.95*H5)-G5)/(G5)","v":{"$error":"#DIV/0!"}},{"$f":"wowQty(A5)","v":0}]
["Truesteel Breastplate",100,"Raw Beast Hide",10,null,null,0,0,0,0,0,0,{"$error":"#DIV/0!"},0,null,"Daily Work Order Yield"]
["Truesteel Gauntlets",100,"Sumptuous Fur",2,null,null,0,0,0,0,0,0,{"$error":"#DIV/0!"},0,null,6]
["Truesteel Greaves",100,"Sumptuous Fur",4,null,null,0,0,0,0,0,0,{"$error":"#DIV/0!"},0]
["Truesteel Helm",100,"True Iron Ore",5,null,null,0,0,0,0,0,0,{"$error":"#DIV/0!"},0,null,"Cost Per Reagent"]
["Truesteel Pauldrons",100,"True Iron Ore",10,null,null,0,0,0,0,0,0,{"$error":"#DIV/0!"},0,null,{"$f":"((wowMktPrice(\"True Iron Ore\")*20 + wowMktPrice(\"Blackrock Ore\")*10) +( (wowMktPrice(\"True Iron Ore\")*5)*6))/($P$4+$P$7)","v":0}]
["Truesteel Waistguard",100,"Sumptuous Fur",3,null,null,0,0,0,0,0,0,{"$error":"#DIV/0!"},0]
["Epic iLvl 630 Weapons"]
["Steelforged Dagger",100,"True Iron Ore",20,"Blackrock Ore",20,{"$f":"wowMktPrice(C13)*D13+wowMktPrice(E13)*F13 + B13*$P$10","v":0},{"$f":"wowMktPrice(A13)","v":0},{"$f":"wowmed14price(A13)","v":0},{"$f":"H13-I13","v":0},{"$f":"H13-G13","v":0},{"$f":"K13/B13","v":0},{"$f":"((0.95*H13)-G13)/G13","v":{"$error":"#DIV/0!"}},{"$f":"wowQty(A13)","v":0}]
["Steelforged Hammer",100,"True Iron Ore",20,"Blackrock Ore",20,0,0,{"$f":"wowmed14price(A14)","v":0},{"$f":"H14-I14","v":0},0,0,{"$f":"((0.95*H14)-G14)/G14","v":{"$error":"#DIV/0!"}},{"$f":"wowQty(A14)","v":0}]
["Steelforged Saber",100,"True Iron Ore",20,"Blackrock Ore",20,0,0,{"$f":"wowmed14price(A15)","v":0},0,0,0,{"$error":"#DIV/0!"},0]
["Steelforged Shield",100,"True Iron Ore",20,"Blackrock Ore",20,0,0,0,0,0,0,{"$error":"#DIV/0!"},0]
["Steelforged Aegis",100,"True Iron Ore",20,"Blackrock Ore",20,0,0,0,0,0,0,{"$error":"#DIV/0!"},0]
["Steelforged Greataxe",100,"True Iron Ore",20,"Blackrock Ore",20,0,0,0,0,0,0,{"$error":"#DIV/0!"},0]
["Steelforged Axe",100,"True Iron Ore",20,"Blackrock Ore",20,0,0,0,0,{"$f":"H19-G19","v":0},{"$f":"K19/B19","v":0},{"$error":"#DIV/0!"},0]
["Gear Upgrade Tokens"]
["Truesteel Essence",150,"Sorcerous Earth",30,"Savage Blood",15,{"$f":"wowMktPrice(C21)*D21+wowMktPrice(E21)*F21+B21*$P$10","v":0},{"$f":"wowMktPrice(A21)","v":0},{"$f":"wowmed14price(A21)","v":0},{"$f":"H21-I21","v":0},{"$f":"H21-G21","v":0},{"$f":"K21/B21","v":0},{"$f":"((0.95*H21)-(G21+B21*$P$10))/(G21+B21*$P$10)","v":{"$error":"#DIV/0!"}},{"$f":"wowQty(A21)","v":0}]
["Greater Truesteel Essence",200,"Sorcerous Fire",40,"Savage Blood",15,{"$f":"wowMktPrice(C22)*D22+wowMktPrice(E22)*F22+B22*$P$10","v":0},{"$f":"wowMktPrice(A22)","v":0},{"$f":"wowmed14price(A22)","v":0},{"$f":"H22-I22","v":0},{"$f":"H22-G22","v":0},{"$f":"K22/B22","v":0},{"$error":"#DIV/0!"},{"$f":"wowQty(A22)","v":0}]
["Weapon Upgrade Tokens"]
["Steelforged Essence",150,"Sorcerous Earth",30,"Savage Blood",15,{"$f":"wowMktPrice(C24)*D24+wowMktPrice(E24)*F24+B24*$P$10","v":0},{"$f":"wowMktPrice(A24)","v":0},{"$f":"wowmed14price(A24)","v":0},{"$f":"H24-I24","v":0},{"$f":"H24-G24","v":0},{"$f":"K24/B24","v":0},{"$error":"#DIV/0!"},{"$f":"wowQty(A24)","v":0}]
["Greater Steelforged Essence",200,"Sorcerous Fire",40,"Savage Blood",15,{"$f":"wowMktPrice(C25)*D25+wowMktPrice(E25)*F25+B25*$P$10","v":0},{"$f":"wowMktPrice(A25)","v":0},{"$f":"wowmed14price(A25)","v":0},{"$f":"H25-I25","v":0},{"$f":"H25-G25","v":0},{"$f":"K25/B25","v":0},{"$error":"#DIV/0!"},{"$f":"wowQty(A25)","v":0}]
["Reroll Tokens"]
["Truesteel Reshaper",10,"True Iron Ore",10,null,null,{"$f":"wowMktPrice(C27)*D27+B27*$P$10","v":0},{"$f":"wowMktPrice(A27)","v":0},{"$f":"wowmed14price(A27)","v":0},{"$f":"H27-I27","v":0},{"$f":"H27-G27","v":0},{"$f":"K27/B27","v":0},{"$error":"#DIV/0!"},{"$f":"wowQty(A27)","v":0}]
["Truesteel Grinder",10,"True Iron Ore",10,null,null,{"$f":"wowMktPrice(C28)*D28+B28*$P$10","v":0},{"$f":"wowMktPrice(A28)","v":0},{"$f":"wowmed14price(A28)","v":0},{"$f":"H28-I28","v":0},{"$f":"H28-G28","v":0},{"$f":"K28/B28","v":0},{"$error":"#DIV/0!"},{"$f":"wowQty(A28)","v":0}]
["Rare iLvl 550 Gear"]
["Smoldering Breastplate",null,"True Iron Ore",30,"Blackrock Ore",30,{"$f":"wowMktPrice(C30)*D30+wowMktPrice(E30)*F30","v":0},{"$f":"wowMktPrice(A30)","v":0},{"$f":"wowmed14price(A30)","v":0},{"$f":"H30-I30","v":0},{"$f":"H30-G30","v":0},null,{"$error":"#DIV/0!"},{"$f":"wowQty(A30)","v":0}]
["Smoldering Greaves",null,"True Iron Ore",60,null,null,{"$f":"wowMktPrice(C31)*D31+wowMktPrice(E31)*F31","v":0},{"$f":"wowMktPrice(A31)","v":0},{"$f":"wowmed14price(A31)","v":0},{"$f":"H31-I31","v":0},{"$f":"H31-G31","v":0},null,{"$error":"#DIV/0!"},{"$f":"wowQty(A31)","v":0}]
["Smoldering Helm",null,"Blackrock Ore",60,null,null,{"$f":"wowMktPrice(C32)*D32+wowMktPrice(E32)*F32","v":0},{"$f":"wowMktPrice(A32)","v":0},0,0,{"$f":"H32-G32","v":0},null,{"$error":"#DIV/0!"},{"$f":"wowQty(A32)","v":0}]
["Other Items"]
["Soul of the Forge",50,"Sorcerous Fire",10,null,null,{"$f":"wowMktPrice(C34)*D34+B34*$P$10","v":0},{"$f":"wowMktPrice(A34)","v":0},{"$f":"wowmed14price(A34)","v":0},{"$f":"H34-I34","v":0},{"$f":"H34-G34","v":0},{"$f":"K34/B34","v":0},{"$error":"#DIV/0!"},{"$f":"wowQty(A34)","v":0}]

{"sheet":"Leatherworking","index":3,"n_rows":42,"n_cols":16,"rows_kept":42,"cut":false,"hidden":false,"merged":[]}
[]
["Leatherworking","Burnished Leather","Material #1","Mat #1 Qty","Material #2","Mat #2 Qty","Total Mats Costs","Market Value","Historic Market Value","∆ MV","Profit","Profit per Reagent","ROI","Quantity Posted"]
["Epic iLvl 640 Leather Gear",null,null,null,null,null,null,null,null,null,null,null,null,null,null,"Cooldown Yield"]
["Supple Boots",100,"Sumptuous Fur",2,null,null,{"$f":"wowMktPrice(C4)*D4 +B4*$P$10","v":0},{"$f":"wowMktPrice(A4)","v":0},{"$f":"wowmed14price(A4)","v":0},{"$f":"H4-I4","v":0},{"$f":"H4-G4","v":0},{"$f":"K4/B4","v":0},{"$f":"((0.95*H4)-G4)/(G4)","v":{"$error":"#DIV/0!"}},{"$f":"wowQty(A4)","v":0},null,4]
["Supple Bracers",100,"Raw Beast Hide",1,null,null,{"$f":"wowMktPrice(C5)*D5 +B5*$P$10","v":0},{"$f":"wowMktPrice(A5)","v":0},{"$f":"wowmed14price(A5)","v":0},{"$f":"H5-I5","v":0},{"$f":"H5-G5","v":0},{"$f":"K5/B5","v":0},{"$f":"((0.95*H5)-G5)/(G5)","v":{"$error":"#DIV/0!"}},{"$f":"wowQty(A5)","v":0}]
["Supple Gloves",100,"Sumptuous Fur",2,null,null,0,0,0,0,0,0,{"$error":"#DIV/0!"},0,null,"Daily Work Order Yield"]
["Supple Helm",100,"True Iron Ore",5,null,null,0,0,0,0,0,0,{"$error":"#DIV/0!"},0,null,6]
["Supple Leggings",100,"Sumptuous Fur",4,null,null,0,0,0,0,0,0,{"$error":"#DIV/0!"},0]
["Supple Shoulderguards",100,"True Iron Ore",10,null,null,0,0,0,0,0,0,{"$error":"#DIV/0!"},0,null,"Cost Per Reagent"]
["Supple Vest",100,"Raw Beast Hide",10,null,null,0,0,0,0,0,0,{"$error":"#DIV/0!"},0,null,{"$f":"((wowMktPrice(\"Raw Beast Hide\")*20 + wowMktPrice(\"Gorgrond Flytrap\")*10) +( (wowMktPrice(\"Raw Beast Hide\")*5)*6))/($P$4+$P$7)","v":0}]
["Supple Waistguard",100,"Sumptuous Fur",3,null,null,0,0,0,0,0,0,{"$error":"#DIV/0!"},0]
["Epic iLvl 640 Mail Gear"]
["Wayfaring Belt",100,"Sumptuous Fur",3,null,null,0,0,0,{"$f":"H13-I13","v":0},{"$f":"H13-G13","v":0},{"$f":"K13/B13","v":0},{"$error":"#DIV/0!"},0]
["Wayfaring Boots",100,"Sumptuous Fur",2,null,null,0,0,0,0,0,0,{"$error":"#DIV/0!"},0]
["Wayfaring Bracers",100,"Raw Beast Hide",1,null,null,0,0,0,0,0,0,{"$error":"#DIV/0!"},0]
["Wayfaring Gloves",100,"Sumptuous Fur",2,null,null,0,0,0,0,0,0,{"$error":"#DIV/0!"},0]
["Wayfaring Helm",100,"True Iron Ore",5,null,null,0,0,0,0,0,0,{"$error":"#DIV/0!"},0]
["Wayfaring Leggings",100,"Sumptuous Fur",4,null,null,0,0,0,0,0,0,{"$error":"#DIV/0!"},0]
["Wayfaring Shoulderguards",100,"True Iron Ore",10,null,null,0,0,0,0,0,0,{"$error":"#DIV/0!"},0]
["Wayfaring Tunic",100,"Raw Beast Hide",10,null,null,0,0,0,0,0,0,{"$error":"#DIV/0!"},0]
["Epic iLvl 640 Cloaks"]
["Nimble Burnished Cloak",100,"Draenic Agility Potion",1,null,null,0,0,0,0,0,0,{"$error":"#DIV/0!"},0]
["Brilliant Burnished Cloak",100,"Draenic Intellect Potion",1,null,null,0,0,0,0,0,0,{"$error":"#DIV/0!"},0]
["Powerful Burnished Cloak",100,"Draenic Strength Potion",1,null,null,0,0,0,0,0,0,{"$error":"#DIV/0!"},0]
["Gear Upgrade Tokens"]
["Burnished Essence",150,"Sorcerous Earth",30,"Savage Blood",15,{"$f":"wowMktPrice(C26)*D26 +wowMktPrice(E26)*F26+B26*$P$10","v":0},0,0,0,0,0,{"$error":"#DIV/0!"},0]
["Greater Burnished Essence",200,"Sorcerous Water",40,"Savage Blood",15,{"$f":"wowMktPrice(C27)*D27 +wowMktPrice(E27)*F27+B27*$P$10","v":0},0,0,0,0,0,{"$error":"#DIV/0!"},0]
["Reroll Token"]
["Leather Refurbishing Kit",10,"Raw Beast Hide",10,null,null,0,0,0,0,0,0,{"$error":"#DIV/0!"},0]
["Rare iLvl 550 Leather Gear"]
["Journeying Helm",null,"Raw Beast Hide",50,null,null,0,0,0,0,0,null,{"$error":"#DIV/0!"},0]
["Journeying Robes",null,"Raw Beast Hide",50,null,null,0,0,0,0,0,null,{"$error":"#DIV/0!"},0]
["Journeying Slacks",null,"Raw Beast Hide",50,null,null,0,0,0,0,0,null,{"$error":"#DIV/0!"},0]
["Rare iLvl 550 Mail Gear"]
["Traveling Helm",null,"Raw Beast Hide",50,null,null,0,0,0,0,0,null,{"$error":"#DIV/0!"},0]
["Traveling Leggings",null,"Raw Beast Hide",50,null,null,0,0,0,0,0,null,{"$error":"#DIV/0!"},0]
["Traveling Tunic",null,"Raw Beast Hide",50,null,null,0,0,0,0,0,null,{"$error":"#DIV/0!"},0]
["Other Items"]
["Burnished Inscription Bag",50,"Sorcerous Air",10,null,null,0,0,0,0,0,0,{"$error":"#DIV/0!"},0]
["Burnished Leather Bag",50,"Sorcerous Earth",10,null,null,0,0,0,0,0,0,{"$error":"#DIV/0!"},0]
["Burnished Mining Bag",50,"Sorcerous Earth",10,null,null,0,0,0,0,0,0,{"$error":"#DIV/0!"},0]
["Drums of Fury",null,"Raw Beast Hide",1,null,null,0,0,0,0,0,null,{"$error":"#DIV/0!"},0]

{"sheet":"Tailoring","index":4,"n_rows":29,"n_cols":16,"rows_kept":29,"cut":false,"hidden":false,"merged":[]}
[]
["Tailoring","Heaxweave Cloth","Material #1","Mat #1 Qty","Material #2","Mat #2 Qty","Total Mats Costs","Market Value","Historic Market Value","∆ MV","Profit","Profit per Reagent","ROI","Quantity Posted"]
["Epic iLvl 640 Gear",null,null,null,null,null,null,null,null,null,null,null,null,null,null,"Cooldown Yield"]
["Hexweave Belt",100,"Raw Beast Hide",3,null,null,{"$f":"wowMktPrice(C4)*D4 + B4*$P$10","v":0},{"$f":"wowMktPrice(A4)","v":0},{"$f":"wowmed14price(A4)","v":0},{"$f":"H4-I4","v":0},{"$f":"H4-G4","v":0},{"$f":"K4/B4","v":0},{"$f":"((0.95*H4)-G4)/(G4)","v":{"$error":"#DIV/0!"}},{"$f":"wowQty(A4)","v":0},null,4]
["Hexweave Bracers",100,"Sumptuous Fur",1,null,null,{"$f":"wowMktPrice(C5)*D5 + B5*$P$10","v":0},0,0,{"$f":"H5-I5","v":0},{"$f":"H5-G5","v":0},{"$f":"K5/B5","v":0},{"$f":"((0.95*H5)-G5)/(G5)","v":{"$error":"#DIV/0!"}},{"$f":"wowQty(A5)","v":0}]
["Hexweave Cowl",100,"True Iron Ore",5,null,null,0,0,0,0,0,0,{"$error":"#DIV/0!"},0,null,"Daily Work Order Yield"]
["Hexweave Gloves",100,"Raw Beast Hide",2,null,null,0,0,0,0,0,0,{"$error":"#DIV/0!"},0,null,6]
["Hexweave Leggings",100,"Raw Beast Hide",4,null,null,0,0,0,0,0,0,{"$error":"#DIV/0!"},0]
["Hexweave Mantle",100,"True Iron Ore",10,null,null,0,0,0,0,0,0,{"$error":"#DIV/0!"},0,null,"Cost Per Reagent"]
["Hexweave Robe",100,"Sumptuous Fur",10,null,null,0,0,0,0,0,0,{"$error":"#DIV/0!"},0,null,{"$f":"((wowMktPrice(\"Sumptuous Fur\")*20 + wowMktPrice(\"Gorgrond Flytrap\")*10) +( (wowMktPrice(\"Sumptuous Fur\")*5)*6))/($P$4+$P$7)","v":0}]
["Hexweave Slippers",100,"Raw Beast Hide",2,null,null,0,0,0,0,0,0,{"$error":"#DIV/0!"},0]
["Epic iLvl 640 Cloaks"]
["Nimble Hexweave Cloak",100,"Draenic Agility Potion",1,null,null,0,{"$f":"wowMktPrice(A13)","v":0},{"$f":"wowmed14price(A13)","v":0},0,0,0,{"$error":"#DIV/0!"},{"$f":"wowQty(A13)","v":0}]
["Brilliant Hexweave Cloak",100,"Draenic Intellect Potion",1,null,null,0,{"$f":"wowMktPrice(A14)","v":0},{"$f":"wowmed14price(A14)","v":0},0,0,0,{"$error":"#DIV/0!"},{"$f":"wowQty(A14)","v":0}]
["Powerful Hexweave Cloak",100,"Draenic Strength Potion",1,null,null,0,{"$f":"wowMktPrice(A15)","v":0},{"$f":"wowmed14price(A15)","v":0},0,0,0,{"$error":"#DIV/0!"},{"$f":"wowQty(A15)","v":0}]
["Gear Upgrade Tokens"]
["Hexweave Essence",150,"Sorcerous Water",30,"Savage Blood",15,{"$f":"wowMktPrice(C17)*D17 + +wowMktPrice(E17)*F17+B17*$P$10","v":0},{"$f":"wowMktPrice(A17)","v":0},{"$f":"wowmed14price(A17)","v":0},0,0,0,{"$error":"#DIV/0!"},0]
["Greater Hexweave Essence",200,"Sorcerous Air",40,"Savage Blood",15,{"$f":"wowMktPrice(C18)*D18 + +wowMktPrice(E18)*F18+B18*$P$10","v":0},{"$f":"wowMktPrice(A18)","v":0},{"$f":"wowmed14price(A18)","v":0},0,0,0,{"$error":"#DIV/0!"},0]
["Reroll Tokens"]
["Hexweave Embroidery",10,"Sumptuous Fur",10,null,null,0,{"$f":"wowMktPrice(A20)","v":0},{"$f":"wowmed14price(A20)","v":0},0,0,0,{"$error":"#DIV/0!"},0]
["Rare iLvl 550 Gear"]
["Sumptuous Robes",null,"Sumptuous Fur",50,null,null,0,{"$f":"wowMktPrice(A22)","v":0},{"$f":"wowmed14price(A22)","v":0},0,0,null,{"$error":"#DIV/0!"},0]
["Sumptuous Cowl",null,"Sumptuous Fur",50,null,null,0,{"$f":"wowMktPrice(A23)","v":0},{"$f":"wowmed14price(A23)","v":0},0,0,null,{"$error":"#DIV/0!"},0]
["Sumptuous Leggings",null,"Sumptuous Fur",50,null,null,0,{"$f":"wowMktPrice(A24)","v":0},{"$f":"wowmed14price(A24)","v":0},0,0,null,{"$error":"#DIV/0!"},0]
["Other Items"]
["Hexweave Bag",100,"Sorcerous Earth",10,null,null,0,{"$f":"wowMktPrice(A26)","v":0},{"$f":"wowmed14price(A26)","v":0},0,0,0,{"$error":"#DIV/0!"},0]
["Elekk Plushie",50,"Sorcerous Earth",10,null,null,0,{"$f":"wowMktPrice(A27)","v":0},{"$f":"wowmed14price(A27)","v":0},0,0,0,{"$error":"#DIV/0!"},{"$f":"wowQty(A27)","v":0}]
["Inspiring Battle Standard",null,"Sumptuous Fur",5,null,null,{"$f":"wowMktPrice(C28)*D28","v":0},{"$f":"wowMktPrice(A28)","v":0},{"$f":"wowmed14price(A28)","v":0},0,0,null,{"$error":"#DIV/0!"},{"$f":"wowQty(A28)","v":0}]
["Fearsome Battle Standard",null,"Sumptuous Fur",5,null,null,{"$f":"wowMktPrice(C29)*D29","v":0},{"$f":"wowMktPrice(A29)","v":0},{"$f":"wowmed14price(A29)","v":0},0,0,null,{"$error":"#DIV/0!"},{"$f":"wowQty(A29)","v":0}]

{"sheet":"Alchemy","index":5,"n_rows":29,"n_cols":16,"rows_kept":29,"cut":false,"hidden":false,"merged":[[19,4,23,5]]}
[]
["Alchemy","Alchemical Catalysts","Material #1","Mat #1 Qty","Material #2","Mat #2 Qty","Total Mats Cost","Market Value","Historic Market Value","∆ MV","Profit","Profit per Catalyst","ROI","Quantity Posted"]
["Greater Flasks",null,null,null,null,null,null,null,null,null,null,null,null,null,null,"Cooldown Yield"]
["Greater Draenic Agility Flask",1,"Draenic Agility Flask",1,"Sorcerous Water",0.2,{"$f":"wowMktPrice(C4)*D4+wowMktPrice(E4)*F4+B4*IF($P$18=\"CD\",$P$9,wowMktPrice(\"Alchemical Catalyst\"))","v":0},{"$f":"wowMktPrice(A4)","v":0},{"$f":"wowmed14price(A4)","v":0},{"$f":"H4-I4","v":0},{"$f":"H4-G4","v":0},{"$f":"K4/B4","v":0},{"$f":"((0.95*H4)-G4)/(G4)","v":{"$error":"#DIV/0!"}},{"$f":"wowQty(A4)","v":0},null,4]
["Greater Draenic Intellect Flask",1,"Draenic Intellect Flask",1,"Sorcerous Fire",0.2,{"$f":"wowMktPrice(C5)*D5+wowMktPrice(E5)*F5+B5*IF($P$18=\"CD\",$P$9,wowMktPrice(\"Alchemical Catalyst\"))","v":0},{"$f":"wowMktPrice(A5)","v":0},{"$f":"wowmed14price(A5)","v":0},{"$f":"H5-I5","v":0},{"$f":"H5-G5","v":0},{"$f":"K5/B5","v":0},{"$f":"((0.95*H5)-G5)/(G5)","v":{"$error":"#DIV/0!"}},{"$f":"wowQty(A5)","v":0}]
["Greater Draenic Strength Flask",1,"Draenic Strength Flask",1,"Sorcerous Fire",0.2,{"$f":"wowMktPrice(C6)*D6+wowMktPrice(E6)*F6+B6*IF($P$18=\"CD\",$P$9,wowMktPrice(\"Alchemical Catalyst\"))","v":0},{"$f":"wowMktPrice(A6)","v":0},{"$f":"wowmed14price(A6)","v":0},0,0,0,{"$error":"#DIV/0!"},{"$f":"wowQty(A6)","v":0},null,"Daily Work Order Yield"]
["Greater Draenic Stamina Flask",1,"Draenic Stamina Flask",1,"Sorcerous Water",0.2,{"$f":"wowMktPrice(C7)*D7+wowMktPrice(E7)*F7+B7*IF($P$18=\"CD\",$P$9,wowMktPrice(\"Alchemical Catalyst\"))","v":0},{"$f":"wowMktPrice(A7)","v":0},{"$f":"wowmed14price(A7)","v":0},0,0,0,{"$error":"#DIV/0!"},{"$f":"wowQty(A7)","v":0},null,6]
["Lesser Flasks",null,null,null,null,null,null,null,null,null,null,null,null,null,null,"Cost Per Catalyst"]
["Draenic Agility Flask",null,"Fireweed",4,null,null,{"$f":"wowMktPrice(C9)*D9","v":0},{"$f":"wowMktPrice(A9)","v":0},{"$f":"wowmed14price(A9)","v":0},0,0,null,{"$error":"#DIV/0!"},{"$f":"wowQty(A9)","v":0},null,{"$f":"((wowMktPrice(\"Frostweed\")*20 + wowMktPrice(\"Blackrock Ore\")*10) +( (wowMktPrice(\"Frostweed\")*5)*6))/($P$4+$P$7)","v":0}]
["Draenic Intellect Flask",null,"Starflower",4,null,null,{"$f":"wowMktPrice(C10)*D10","v":0},{"$f":"wowMktPrice(A10)","v":0},{"$f":"wowmed14price(A10)","v":0},0,0,null,{"$error":"#DIV/0!"},{"$f":"wowQty(A10)","v":0}]
["Draenic Strength Flask",null,"Nagrand Arrowbloom",4,null,null,{"$f":"wowMktPrice(C11)*D11","v":0},{"$f":"wowMktPrice(A11)","v":0},{"$f":"wowmed14price(A11)","v":0},0,0,null,{"$error":"#DIV/0!"},{"$f":"wowQty(A11)","v":0}]
["Draenic Stamina Flask",null,"Talador Orchid",4,null,null,{"$f":"wowMktPrice(C12)*D12","v":0},{"$f":"wowMktPrice(A12)","v":0},{"$f":"wowmed14price(A12)","v":0},0,0,null,{"$error":"#DIV/0!"},{"$f":"wowQty(A12)","v":0},null,"Catalyst AH Cost"]
["Potions","Crescent Oil",null,null,null,null,null,null,null,null,null,null,null,null,null,{"$f":"wowMktPrice(\"Alchemical Catalyst\")","v":0}]
["Draenic Agility Potion",1,"Raw Talbuk Meat",1,null,null,{"$f":"wowMktPrice(C14)*D14+B14*$G$29","v":0},{"$f":"wowMktPrice(A14)","v":0},{"$f":"wowmed14price(A14)","v":0},0,0,null,{"$error":"#DIV/0!"},{"$f":"wowQty(A14)","v":0}]
["Draenic Intellect Potion",1,"Abyssal Gulper Eel Flesh",3,null,null,{"$f":"wowMktPrice(C15)*D15+B15*$G$29","v":0},0,0,0,0,null,{"$error":"#DIV/0!"},0]
["Draenic Strength Potion",1,"Raw Boar Meat",1,null,null,0,0,0,0,0,null,{"$error":"#DIV/0!"},0,null,"Catalyst Pricing:"]
["Draenic Armor Potion",1,"True Iron Ore",3,null,null,0,0,0,0,0,null,{"$error":"#DIV/0!"},0,null,"Use CD or AH?"]
["Draenic Channeled Mana Potion",1,"Raw Clefthoof Meat",1,null,null,0,{"$f":"wowMktPrice(A18)","v":0},{"$f":"wowmed14price(A18)","v":0},0,0,null,{"$error":"#DIV/0!"},{"$f":"wowQty(A18)","v":0},null,"CD"]
["Draenic Invisibility Potion",1,"Jawless Skulker Flesh",3,null,null,0,{"$f":"wowMktPrice(A19)","v":0},{"$f":"wowmed14price(A19)","v":0},0,0,null,{"$error":"#DIV/0!"},{"$f":"wowQty(A19)","v":0}]
["Draenic Swiftness Potion",1,"Blackwater Whiptail Flesh",3,"Crescent Oil Cost is Included in Cost of Potions Using the MV of 3 Crsecent Saberfish Flesh",null,0,{"$f":"wowMktPrice(A20)","v":0},{"$f":"wowmed14price(A20)","v":0},0,0,null,{"$error":"#DIV/0!"},{"$f":"wowQty(A20)","v":0}]
["Draenic Living Action Potion",1,"Fat Sleeper Flesh",3,null,null,0,{"$f":"wowMktPrice(A21)","v":0},{"$f":"wowmed14price(A21)","v":0},0,0,null,{"$error":"#DIV/0!"},{"$f":"wowQty(A21)","v":0}]
["Draenic Mana Potion",1,"Blackwater Whiptail Flesh",3,null,null,0,0,0,0,0,null,{"$error":"#DIV/0!"},0]
["Draenic Rejuvenation Potion",1,"Crescent Saberfish Flesh",3,null,null,0,0,0,0,0,null,{"$error":"#DIV/0!"},0]
["Pure Rage Potion",1,"Fire Ammonite Tentacle",3,null,null,0,0,0,0,0,null,{"$error":"#DIV/0!"},0]
["Draenic Water Breathing Elixir",1,"Abyssal Gulper Eel Flesh",3,null,null,0,0,0,0,0,null,{"$error":"#DIV/0!"},0]
["Draenic Water Walking Elixir",1,"Blind Lake Sturgeon Flesh",3,null,null,0,0,0,0,0,null,{"$error":"#DIV/0!"},0]
["Other Consumables","Crescent Oil"]
["Transmorphic Tincture",1,"Frostweed",5,null,null,{"$f":"wowMktPrice(C28)*D28+wowMktPrice($B$13)*D28","v":0},{"$f":"wowMktPrice(A28)","v":0},{"$f":"wowmed14price(A28)","v":0},0,0,null,{"$error":"#DIV/0!"},{"$f":"wowQty(A28)","v":0}]
["Crescent Oil",null,"Crescent Saberfish Flesh",3,null,null,{"$f":"wowMktPrice(C29)*D29","v":0},{"$f":"wowMktPrice(A29)","v":0},{"$f":"wowmed14price(A29)","v":0},0,0,null,{"$error":"#DIV/0!"},{"$f":"wowQty(A29)","v":0}]

{"sheet":"Engineering","index":6,"n_rows":36,"n_cols":16,"rows_kept":36,"cut":false,"hidden":false,"merged":[]}
[]
["Engineering","Gearspring Parts","Material #1","Mat #1 Qty","Material #2","Mat #2 Qty","Total Mats Costs","Market Value","Historic Market Value","∆ MV","Profit","Profit per Parts","ROI","Quantity Posted"]
["Epic iLvl 630 GAT",null,null,null,null,null,null,null,null,null,null,null,null,null,null,"Cooldown Yield"]
["Shrediron's Shredder",100,null,null,null,null,{"$f":"B4*$P$9","v":0},{"$f":"wowMktPrice(A4)","v":0},{"$f":"wowmed14price(A4)","v":0},{"$f":"H4-I4","v":0},{"$f":"H4-G4","v":0},{"$f":"K4/B4","v":0},{"$f":"((0.95*H4)-G4)/(G4)","v":{"$error":"#DIV/0!"}},{"$f":"wowQty(A4)","v":0},null,4]
["Epic iLvl 640 Engineering Goggles",null,null,null,null,null,null,null,null,null,null,null,null,null,null,"Daily Work Order Yield"]
["Cybergenetic Mechshades",100,null,null,null,null,{"$f":"B6*$P$9","v":0},{"$f":"wowMktPrice(A6)","v":0},{"$f":"wowmed14price(A6)","v":0},{"$f":"H6-I6","v":0},{"$f":"H6-G6","v":0},{"$f":"K6/B6","v":0},{"$f":"((0.95*H6)-G6)/(G6)","v":{"$error":"#DIV/0!"}},{"$f":"wowQty(A6)","v":0},null,6]
["Night-Vision Mechshades",100,null,null,null,null,0,{"$f":"wowMktPrice(A7)","v":0},{"$f":"wowmed14price(A7)","v":0},0,0,0,{"$error":"#DIV/0!"},{"$f":"wowQty(A7)","v":0}]
["Plasma Mechshades",100,null,null,null,null,0,{"$f":"wowMktPrice(A8)","v":0},{"$f":"wowmed14price(A8)","v":0},0,0,0,{"$error":"#DIV/0!"},{"$f":"wowQty(A8)","v":0},null,"Cost Per Parts"]
["Razorguard Mechshades",100,null,null,null,null,0,{"$f":"wowMktPrice(A9)","v":0},{"$f":"wowmed14price(A9)","v":0},0,0,0,{"$error":"#DIV/0!"},{"$f":"wowQty(A9)","v":0},null,{"$f":"((wowMktPrice(\"True Iron Ore\")*10 + wowMktPrice(\"Blackrock Ore\")*10) +( (wowMktPrice(\"True Iron Ore\")*2+wowMktPrice(\"Blackrock Ore\")*2)*6))/($P$4+$P$6)","v":0}]
["GAT Upgrade Tokens"]
["True Iron Trigger",150,"Sorcerous Fire",30,"Savage Blood",15,{"$f":"wowMktPrice(C11)*D11+wowMktPrice(E11)*F11+B11*$P$9","v":0},{"$f":"wowMktPrice(A11)","v":0},{"$f":"wowmed14price(A11)","v":0},0,0,0,{"$error":"#DIV/0!"},{"$f":"wowQty(A11)","v":0}]
["Blackrock Rifling",200,"Sorcerous Air",40,"Savage Blood",15,{"$f":"wowMktPrice(C12)*D12+wowMktPrice(E12)*F12+B12*$P$9","v":0},{"$f":"wowMktPrice(A12)","v":0},{"$f":"wowmed14price(A12)","v":0},0,0,0,{"$error":"#DIV/0!"},{"$f":"wowQty(A12)","v":0}]
["Goggles Upgrade Token"]
["Linkgrease Locksprocket",150,"Sorcerous Fire",30,"Savage Blood",15,{"$f":"wowMktPrice(C14)*D14+wowMktPrice(E14)*F14+B14*$P$9","v":0},{"$f":"wowMktPrice(A14)","v":0},{"$f":"wowmed14price(A14)","v":0},0,0,0,{"$error":"#DIV/0!"},{"$f":"wowQty(A14)","v":0}]
["Morden's Magnificent Contraption",200,"Sorcerous Air",40,"Savage Blood",15,{"$f":"wowMktPrice(C15)*D15+wowMktPrice(E15)*F15+B15*$P$9","v":0},{"$f":"wowMktPrice(A15)","v":0},{"$f":"wowmed14price(A15)","v":0},0,0,0,{"$error":"#DIV/0!"},{"$f":"wowQty(A15)","v":0}]
["Reroll Token"]
["Didi's Delicate Assembly",10,"True Iron Ore",5,"Blackrock Ore",5,{"$f":"wowMktPrice(C17)*D17+wowMktPrice(E17)*F17+B17*$P$9","v":0},{"$f":"wowMktPrice(A17)","v":0},{"$f":"wowmed14price(A17)","v":0},0,0,0,{"$error":"#DIV/0!"},{"$f":"wowQty(A17)","v":0}]
["Scopes"]
["Oglethorpe's Missile Splitter",20,null,null,null,null,{"$f":"B19*$P$9","v":0},{"$f":"wowMktPrice(A19)","v":0},{"$f":"wowmed14price(A19)","v":0},0,0,0,{"$error":"#DIV/0!"},{"$f":"wowQty(A19)","v":0}]
["Megawatt Filament",20,null,null,null,null,{"$f":"B20*$P$9","v":0},{"$f":"wowMktPrice(A20)","v":0},{"$f":"wowmed14price(A20)","v":0},0,0,0,{"$error":"#DIV/0!"},{"$f":"wowQty(A20)","v":0}]
["Hemet's Heartseeker",20,null,null,null,null,0,{"$f":"wowMktPrice(A21)","v":0},{"$f":"wowmed14price(A21)","v":0},0,0,0,{"$error":"#DIV/0!"},{"$f":"wowQty(A21)","v":0}]
["Pets"]
["Lifelike Mechanical Frostboar",50,"Sumptuous Fur",40,null,null,{"$f":"wowMktPrice(C23)*D23+B23*$P$9","v":0},{"$f":"wowMktPrice(A23)","v":0},{"$f":"wowmed14price(A23)","v":0},0,0,0,{"$error":"#DIV/0!"},{"$f":"wowQty(A23)","v":0}]
["Mechanical Axebeak",50,null,null,null,null,{"$f":"wowMktPrice(C24)*D24+B24*$P$9","v":0},{"$f":"wowMktPrice(A24)","v":0},{"$f":"wowmed14price(A24)","v":0},0,0,0,{"$error":"#DIV/0!"},{"$f":"wowQty(A24)","v":0}]
["Mechanical Scorpid",30,"Blackrock Ore",10,null,null,0,{"$f":"wowMktPrice(A25)","v":0},{"$f":"wowmed14price(A25)","v":0},0,0,0,{"$error":"#DIV/0!"},{"$f":"wowQty(A25)","v":0}]
["Gadgets & Devices"]
["Findle's Loot-A-Rang",50,null,null,null,null,{"$f":"wowMktPrice(C27)*D27+B27*$P$9","v":0},{"$f":"wowMktPrice(A27)","v":0},{"$f":"wowmed14price(A27)","v":0},0,0,0,{"$error":"#DIV/0!"},{"$f":"wowQty(A27)","v":0}]
["Personal Hologram",50,null,null,null,null,{"$f":"wowMktPrice(C28)*D28+B28*$P$9","v":0},0,0,0,0,0,{"$error":"#DIV/0!"},0]
["Swapblaster",50,"Temporal Crystal",1,null,null,0,0,0,0,0,0,{"$error":"#DIV/0!"},0]
["World Shrinker",50,null,null,null,null,0,0,0,0,0,0,{"$error":"#DIV/0!"},0]
["Wormhole Centrifuge",50,null,null,null,null,0,0,0,0,0,0,{"$error":"#DIV/0!"},0]
["Ultimate Gnomish Army Knife",5,null,null,null,null,0,0,0,0,0,0,{"$error":"#DIV/0!"},0]
["Goblin Glider Kit",null,"Sumptuous Fur",1,"True Iron Ore",1.6,{"$f":"wowMktPrice(C33)*D33+B33*$P$9+wowMktPrice(E33)*F33","v":0},0,0,0,0,null,{"$error":"#DIV/0!"},0]
["Mecha-Blast Rocket",null,"Blackrock Ore",1.2,null,null,0,0,0,0,0,null,{"$error":"#DIV/0!"},0]
["Shieldtronic Shield",null,"True Iron Ore",1.2,null,null,0,0,0,0,0,null,{"$error":"#DIV/0!"},0]
["Stealthman 54",null,"True Iron Ore",0.4,"Blackrock Ore",0.4,{"$f":"wowMktPrice(C36)*D36+wowMktPrice(\"Nagrand Arrowbloom\")*0.4","v":0},0,0,0,0,null,{"$error":"#DIV/0!"},0]

{"sheet":"Jewelcrafting","index":7,"n_rows":43,"n_cols":16,"rows_kept":43,"cut":false,"hidden":false,"merged":[]}
[]
["Jewelcrafting","Taladite Crystal","Material #1","Mat #1 Qty","Material #2","Mat #2 Qty","Total Mats Costs","Market Value","Historic Market Value","∆ MV","Profit","Profit per Crystal","ROI","Quantity Posted",null,"Cooldown Yield"]
["Greater Taladite Gems",null,null,null,null,null,null,null,null,null,null,null,null,null,null,4]
["Greater Critical Strike Taladite",50,"Sorcerous Air",10,"Fireweed",5,{"$f":"wowMktPrice(C4)*D4+wowMktPrice(E4)*F4+B4*$P$9","v":0},{"$f":"wowMktPrice(A4)","v":0},{"$f":"wowmed14price(A4)","v":0},{"$f":"H4-I4","v":0},{"$f":"H4-G4","v":0},{"$f":"K4/B4","v":0},{"$f":"((0.95*H4)-G4)/(G4)","v":{"$error":"#DIV/0!"}},{"$f":"wowQty(A4)","v":0}]
["Greater Haste Taladite",50,"Sorcerous Air",10,"Frostweed",5,0,0,0,{"$f":"H5-I5","v":0},{"$f":"H5-G5","v":0},{"$f":"K5/B5","v":0},{"$f":"((0.95*H5)-G5)/(G5)","v":{"$error":"#DIV/0!"}},0,null,"Daily Work Order Yield"]
["Greater Mastery Taladite",50,"Sorcerous Air",10,"Starflower",5,0,0,0,0,0,0,{"$error":"#DIV/0!"},0,null,6]
["Greater Multistrike Taladite",50,"Sorcerous Air",10,"Nagrand Arrowbloom",5,0,0,0,0,0,0,{"$error":"#DIV/0!"},0]
["Greater Versatility Taladite",50,"Sorcerous Air",10,"Gorgrond Flytrap",5,0,0,0,0,0,0,{"$error":"#DIV/0!"},0,null,"Cost Per Crystal"]
["Greater Stamina Taladite",50,"Sorcerous Air",10,"Talador Orchid",5,0,0,0,0,0,0,{"$error":"#DIV/0!"},0,null,{"$f":"((wowMktPrice(\"True Iron Ore\")*10 + wowMktPrice(\"Blackrock Ore\")*20) +( (wowMktPrice(\"True Iron Ore\")*5)*6))/($P$3+$P$6)","v":0}]
["Taladite Gems"]
["Critical Strike Taladite",null,"Fireweed",5,"Blackrock Ore",6,{"$f":"wowMktPrice(C11)*D11+wowMktPrice(E11)*F11+B11*$P$9","v":0},{"$f":"wowMktPrice(A11)","v":0},{"$f":"wowmed14price(A11)","v":0},0,0,null,{"$error":"#DIV/0!"},{"$f":"wowQty(A11)","v":0}]
["Haste Taladite",null,"Frostweed",5,"Blackrock Ore",6,0,0,0,0,0,null,{"$error":"#DIV/0!"},0]
["Mastery Taladite",null,"Starflower",5,"True Iron Ore",6,0,0,0,0,0,null,{"$error":"#DIV/0!"},0]
["Multistrike Taladite",null,"Nagrand Arrowbloom",5,"Blackrock Ore",6,0,0,0,0,0,null,{"$error":"#DIV/0!"},0]
["Versatility Taladite",null,"Gorgrond Flytrap",5,"Blackrock Ore",6,0,0,0,0,0,null,{"$error":"#DIV/0!"},0]
["Stamina Taladite",null,"Talador Orchid",5,"True Iron Ore",6,0,0,0,0,0,null,{"$error":"#DIV/0!"},0]
["Epic iLvl 640 Jewelry"]
["Glowing Taladite Ring",100,"True Iron Ore",10,"Blackrock Ore",10,{"$f":"wowMktPrice(C18)*D18+wowMktPrice(E18)*F18+B18*$P$9","v":0},{"$f":"wowMktPrice(A18)","v":0},{"$f":"wowmed14price(A18)","v":0},0,0,0,{"$error":"#DIV/0!"},{"$f":"wowQty(A18)","v":0}]
["Shifting Taladite Ring",100,"True Iron Ore",10,"Blackrock Ore",10,0,0,0,0,0,0,{"$error":"#DIV/0!"},0]
["Whispering Taladite Ring",100,"True Iron Ore",10,"Blackrock Ore",10,0,0,0,0,0,0,{"$error":"#DIV/0!"},0]
["Glowing Taladite Pendant",100,"True Iron Ore",10,"Blackrock Ore",10,0,0,0,0,0,0,{"$error":"#DIV/0!"},0]
["Shifting Taladite Pendant",100,"True Iron Ore",10,"Blackrock Ore",10,0,0,0,0,0,0,{"$error":"#DIV/0!"},0]
["Whispering Taladite Pendant",100,"True Iron Ore",10,"Blackrock Ore",10,0,0,0,0,0,0,{"$error":"#DIV/0!"},0]
["Jewelry Upgrade Tokens"]
["Taladite Amplifier",150,"Sorcerous Earth",30,"Savage Blood",15,{"$f":"wowMktPrice(C25)*D25+wowMktPrice(E25)*F25+B25*$P$9","v":0},{"$f":"wowMktPrice(A25)","v":0},{"$f":"wowmed14price(A25)","v":0},0,0,0,{"$error":"#DIV/0!"},{"$f":"wowQty(A25)","v":0}]
["Greater Taladite Amplifier",200,"Sorcerous Air",40,"Savage Blood",15,{"$f":"wowMktPrice(C26)*D26+wowMktPrice(E26)*F26+B26*$P$9","v":0},{"$f":"wowMktPrice(A26)","v":0},{"$f":"wowmed14price(A26)","v":0},0,0,0,{"$error":"#DIV/0!"},{"$f":"wowQty(A26)","v":0}]
["Reroll Token"]
["Taladite Recrystalizer",10,"True Iron Ore",10,null,null,{"$f":"wowMktPrice(C28)*D28+wowMktPrice(E28)*F28+B28*$P$9","v":0},{"$f":"wowMktPrice(A28)","v":0},{"$f":"wowmed14price(A28)","v":0},0,0,0,{"$error":"#DIV/0!"},{"$f":"wowQty(A28)","v":0}]
["Rare iLvl 585 Rings"]
["Glowing Blackrock Band",null,"True Iron Ore",60,null,null,{"$f":"wowMktPrice(C30)*D30 + wowMktPrice(E30)*F30","v":0},{"$f":"wowMktPrice(A30)","v":0},{"$f":"wowmed14price(A30)","v":0},0,0,null,{"$error":"#DIV/0!"},{"$f":"wowQty(A30)","v":0}]
["Shifting Blackrock Band",null,"Blackrock Ore",30,"True Iron Ore",30,0,{"$f":"wowMktPrice(A31)","v":0},{"$f":"wowmed14price(A31)","v":0},0,0,null,{"$error":"#DIV/0!"},0]
["Whispering Blackrock Band",null,"Blackrock Ore",60,null,null,0,{"$f":"wowMktPrice(A32)","v":0},{"$f":"wowmed14price(A32)","v":0},0,0,null,{"$error":"#DIV/0!"},0]
["Rare iLvl 550 Necklaces",null,null,null,null,null,0]
["Glowing Iron Choker",null,"True Iron Ore",60,null,null,0,{"$f":"wowMktPrice(A34)","v":0},{"$f":"wowmed14price(A34)","v":0},0,0,null,{"$error":"#DIV/0!"},0]
["Shifting Iron Choker",null,"Blckrock Ore",30,"True Iron Ore",30,0,{"$f":"wowMktPrice(A35)","v":0},{"$f":"wowmed14price(A35)","v":0},0,0,null,{"$error":"#DIV/0!"},0]
["Whispering Iron Choker",null,"True Iron Ore",60,null,null,0,{"$f":"wowMktPrice(A36)","v":0},{"$f":"wowmed14price(A36)","v":0},0,0,null,{"$error":"#DIV/0!"},0]
["Rare iLvl 540 Rings",null,null,null,null,null,0]
["Glowing Iron Band",null,"True Iron Ore",60,null,null,0,{"$f":"wowMktPrice(A38)","v":0},{"$f":"wowmed14price(A38)","v":0},0,0,null,{"$error":"#DIV/0!"},0]
["Shifting Iron Band",null,"Blackrock Ore",30,"True Iron Ore",30,0,{"$f":"wowMktPrice(A39)","v":0},{"$f":"wowmed14price(A39)","v":0},0,0,null,{"$error":"#DIV/0!"},0]
["Whispering Irong Band",null,"True Iron Ore",60,null,null,0,{"$f":"wowMktPrice(A40)","v":0},{"$f":"wowmed14price(A40)","v":0},0,0,null,{"$error":"#DIV/0!"},0]
["Other Items"]
["Reflecting Prism",null,"Sorcerous Fire",1,null,null,{"$f":"wowMktPrice(C42)*D42","v":0},{"$f":"wowMktPrice(A42)","v":0},{"$f":"wowmed14price(A42)","v":0},0,0,null,{"$error":"#DIV/0!"},0]
["Prismatic Focusing Lens",null,"Sorcerous Earth",1,null,null,0,{"$f":"wowMktPrice(A43)","v":0},{"$f":"wowmed14price(A43)","v":0},0,0,null,{"$error":"#DIV/0!"},0]

{"sheet":"Enchanting","index":8,"n_rows":46,"n_cols":15,"rows_kept":46,"cut":false,"hidden":false,"merged":[]}
[]
["Enchanting","Temporal Crystal","Material #1","Mat #1 Qty","Type","Total Mats Costs","Market Value","Historic Market Value","∆ MV","Profit","Profit per Crystal","ROI","Quantity Posted",null,"Cooldown Fragment Yield"]
["Weapon Enchants",null,null,null,null,null,null,null,null,null,null,null,null,null,10]
["Enchant Weapon - Mark of the Shattered Hand",1,null,null,null,{"$f":"wowMktPrice(C4)*D4+B4*IF($O$14=\"CD\",$O$9,wowMktPrice(\"Temporal Crystal\"))","v":0},{"$f":"wowMktPrice(A4)","v":0},{"$f":"wowmed14price(A4)","v":0},{"$f":"G4-H4","v":0},{"$f":"G4-F4","v":0},{"$f":"J4/B4","v":0},{"$f":"((0.95*G4)-F4)/(F4)","v":{"$error":"#DIV/0!"}},{"$f":"wowQty(A4)","v":0}]
["Enchant Weapon - Mark of Blackrock",3,"Sorcerous Earth",5,"Armor",0,0,0,{"$f":"G5-H5","v":0},{"$f":"G5-F5","v":0},{"$f":"J5/B5","v":0},{"$f":"((0.95*G5)-F5)/(F5)","v":{"$error":"#DIV/0!"}},0,null,"Daily Work Order Fragment Yield"]
["Enchant Weapon - Mark of Shadowmoon",3,"Sorcerous Fire",5,"Spirit",0,0,0,0,0,0,{"$error":"#DIV/0!"},0,null,6]
["Enchant Weapon - Mark of the Frostwolf",15,"Sorcerous Water",10,"Multistrike",0,0,0,0,0,0,{"$error":"#DIV/0!"},0]
["Enchant Weapon - Mark of the Thunderlord",15,"Sorcerous Air",10,"Crit",0,0,0,0,0,0,{"$error":"#DIV/0!"},0,null,"Cost Per Crystal"]
["Enchant Weapon - Mark of Warsong",15,"Sorcerous Fire",10,"Haste",0,0,0,0,0,0,{"$error":"#DIV/0!"},0,null,{"$f":"((wowMktPrice(\"Luminous Shard\")) +( (wowMktPrice(\"Draenic Dust\")*5)*6))/(($O$3+$O$6)/10)","v":0}]
["Enchant Weapon - Mark of Bleeding Hollow",15,"Sorcerous Air",10,"Mastery",0,0,0,0,0,0,{"$error":"#DIV/0!"},0]
["Greater Ring Enchants"]
["Enchant Ring - Gift of Critical Strike",4,"Sorcerous Water",3,null,{"$f":"wowMktPrice(C12)*D12+B12*IF($O$14=\"CD\",$O$9,wowMktPrice(\"Temporal Crystal\"))","v":0},{"$f":"wowMktPrice(A12)","v":0},{"$f":"wowmed14price(A12)","v":0},0,0,0,{"$error":"#DIV/0!"},{"$f":"wowQty(A12)","v":0},null,"Crystal Pricing:"]
["Enchant Ring - Gift of Haste",4,"Sorcerous Fire",3,null,{"$f":"wowMktPrice(C13)*D13+B13*IF($O$14=\"CD\",$O$9,wowMktPrice(\"Temporal Crystal\"))","v":0},{"$f":"wowMktPrice(A13)","v":0},{"$f":"wowmed14price(A13)","v":0},0,0,0,{"$error":"#DIV/0!"},{"$f":"wowQty(A13)","v":0},null,"Use CD or AH?"]
["Enchant Ring - Gift of Mastery",4,"Sorcerous Air",3,null,{"$f":"wowMktPrice(C14)*D14+B14*IF($O$14=\"CD\",$O$9,wowMktPrice(\"Temporal Crystal\"))","v":0},{"$f":"wowMktPrice(A14)","v":0},{"$f":"wowmed14price(A14)","v":0},0,0,0,{"$error":"#DIV/0!"},{"$f":"wowQty(A14)","v":0},null,"AH"]
["Enchant Ring - Gift of Multistrike",4,"Sorcerous Earth",3,null,{"$f":"wowMktPrice(C15)*D15+B15*IF($O$14=\"CD\",$O$9,wowMktPrice(\"Temporal Crystal\"))","v":0},{"$f":"wowMktPrice(A15)","v":0},{"$f":"wowmed14price(A15)","v":0},0,0,0,{"$error":"#DIV/0!"},{"$f":"wowQty(A15)","v":0}]
["Enchant Ring - Gift of Versatility",4,"Sorcerous Water",3,null,{"$f":"wowMktPrice(C16)*D16+B16*IF($O$14=\"CD\",$O$9,wowMktPrice(\"Temporal Crystal\"))","v":0},{"$f":"wowMktPrice(A16)","v":0},{"$f":"wowmed14price(A16)","v":0},0,0,0,{"$error":"#DIV/0!"},{"$f":"wowQty(A16)","v":0}]
["Greater Neck Enchants"]
["Enchant Neck - Gift of Critical Strike",4,"Sorcerous Fire",3,null,{"$f":"wowMktPrice(C18)*D18+B18*IF($O$14=\"CD\",$O$9,wowMktPrice(\"Temporal Crystal\"))","v":0},{"$f":"wowMktPrice(A18)","v":0},{"$f":"wowmed14price(A18)","v":0},0,0,0,{"$error":"#DIV/0!"},{"$f":"wowQty(A18)","v":0}]
["Enchant Neck - Gift of Haste",4,"Sorcerous Air",3,null,{"$f":"wowMktPrice(C19)*D19+B19*IF($O$14=\"CD\",$O$9,wowMktPrice(\"Temporal Crystal\"))","v":0},{"$f":"wowMktPrice(A19)","v":0},{"$f":"wowmed14price(A19)","v":0},0,0,0,{"$error":"#DIV/0!"},{"$f":"wowQty(A19)","v":0}]
["Enchant Neck - Gift of Mastery",4,"Sorcerous Earth",3,null,{"$f":"wowMktPrice(C20)*D20+B20*IF($O$14=\"CD\",$O$9,wowMktPrice(\"Temporal Crystal\"))","v":0},{"$f":"wowMktPrice(A20)","v":0},{"$f":"wowmed14price(A20)","v":0},0,0,0,{"$error":"#DIV/0!"},{"$f":"wowQty(A20)","v":0}]
["Enchant Neck - Gift of Multistrike",4,"Sorcerous Water",3,null,{"$f":"wowMktPrice(C21)*D21+B21*IF($O$14=\"CD\",$O$9,wowMktPrice(\"Temporal Crystal\"))","v":0},{"$f":"wowMktPrice(A21)","v":0},{"$f":"wowmed14price(A21)","v":0},0,0,0,{"$error":"#DIV/0!"},{"$f":"wowQty(A21)","v":0}]
["Enchant Neck - Gift of Versatility",4,"Sorcerous Fire",3,null,{"$f":"wowMktPrice(C22)*D22+B22*IF($O$14=\"CD\",$O$9,wowMktPrice(\"Temporal Crystal\"))","v":0},{"$f":"wowMktPrice(A22)","v":0},{"$f":"wowmed14price(A22)","v":0},0,0,0,{"$error":"#DIV/0!"},{"$f":"wowQty(A22)","v":0}]
["Greater Cloak Enchants"]
["Enchant Cloak - Gift of Critical Strike",4,"Sorcerous Air",3,null,{"$f":"wowMktPrice(C24)*D24+B24*IF($O$14=\"CD\",$O$9,wowMktPrice(\"Temporal Crystal\"))","v":0},{"$f":"wowMktPrice(A24)","v":0},{"$f":"wowmed14price(A24)","v":0},0,0,0,{"$error":"#DIV/0!"},{"$f":"wowQty(A24)","v":0}]
["Enchant Cloak - Gift of Haste",4,"Sorcerous Earth",3,null,{"$f":"wowMktPrice(C25)*D25+B25*IF($O$14=\"CD\",$O$9,wowMktPrice(\"Temporal Crystal\"))","v":0},{"$f":"wowMktPrice(A25)","v":0},{"$f":"wowmed14price(A25)","v":0},0,0,0,{"$error":"#DIV/0!"},{"$f":"wowQty(A25)","v":0}]
["Enchant Cloak - Gift of Mastery",4,"Sorcerous Water",3,null,{"$f":"wowMktPrice(C26)*D26+B26*IF($O$14=\"CD\",$O$9,wowMktPrice(\"Temporal Crystal\"))","v":0},{"$f":"wowMktPrice(A26)","v":0},{"$f":"wowmed14price(A26)","v":0},0,0,0,{"$error":"#DIV/0!"},{"$f":"wowQty(A26)","v":0}]
["Enchant Cloak - Gift of Multistrike",4,"Sorcerous Fire",3,null,{"$f":"wowMktPrice(C27)*D27+B27*IF($O$14=\"CD\",$O$9,wowMktPrice(\"Temporal Crystal\"))","v":0},{"$f":"wowMktPrice(A27)","v":0},{"$f":"wowmed14price(A27)","v":0},0,0,0,{"$error":"#DIV/0!"},{"$f":"wowQty(A27)","v":0}]
["Enchant Cloak - Gift of Versatility",4,"Sorcerous Air",3,null,{"$f":"wowMktPrice(C28)*D28+B28*IF($O$14=\"CD\",$O$9,wowMktPrice(\"Temporal Crystal\"))","v":0},{"$f":"wowMktPrice(A28)","v":0},{"$f":"wowmed14price(A28)","v":0},0,0,0,{"$error":"#DIV/0!"},{"$f":"wowQty(A28)","v":0}]
["Lesser Ring Enchants"]
["Enchant Ring - Breath of Critical Strike",null,"Luminous Shard",1,null,{"$f":"wowMktPrice(C30)*D30","v":0},{"$f":"wowMktPrice(A30)","v":0},{"$f":"wowmed14price(A30)","v":0},0,{"$f":"G30-F30","v":0},null,{"$error":"#DIV/0!"},{"$f":"wowQty(A30)","v":0}]
["Enchant Ring - Breath of Haste",null,"Luminous Shard",1,null,{"$f":"wowMktPrice(C31)*D31","v":0},{"$f":"wowMktPrice(A31)","v":0},{"$f":"wowmed14price(A31)","v":0},0,0,null,{"$error":"#DIV/0!"},0]
["Enchant Ring - Breath of Mastery",null,"Luminous Shard",1,null,{"$f":"wowMktPrice(C32)*D32","v":0},{"$f":"wowMktPrice(A32)","v":0},{"$f":"wowmed14price(A32)","v":0},0,0,null,{"$error":"#DIV/0!"},0]
["Enchant Ring - Breath of Multistrike",null,"Luminous Shard",1,null,{"$f":"wowMktPrice(C33)*D33","v":0},{"$f":"wowMktPrice(A33)","v":0},{"$f":"wowmed14price(A33)","v":0},0,0,null,{"$error":"#DIV/0!"},0]
["Enchant Ring - Breath of Versatility",null,"Luminous Shard",1,null,{"$f":"wowMktPrice(C34)*D34","v":0},{"$f":"wowMktPrice(A34)","v":0},{"$f":"wowmed14price(A34)","v":0},0,0,null,{"$error":"#DIV/0!"},0]
["Lesser Neck Enchants"]
["Enchant Neck - Breath of Critical Strike",null,"Luminous Shard",1,null,{"$f":"wowMktPrice(C36)*D36","v":0},{"$f":"wowMktPrice(A36)","v":0},{"$f":"wowmed14price(A36)","v":0},0,0,null,{"$error":"#DIV/0!"},0]
["Enchant Neck - Breath of Haste",null,"Luminous Shard",1,null,{"$f":"wowMktPrice(C37)*D37","v":0},{"$f":"wowMktPrice(A37)","v":0},{"$f":"wowmed14price(A37)","v":0},0,0,null,{"$error":"#DIV/0!"},0]
["Enchant Neck - Breath of Mastery",null,"Luminous Shard",1,null,{"$f":"wowMktPrice(C38)*D38","v":0},{"$f":"wowMktPrice(A38)","v":0},{"$f":"wowmed14price(A38)","v":0},0,0,null,{"$error":"#DIV/0!"},0]
["Enchant Neck - Breath of Multistrike",null,"Luminous Shard",1,null,{"$f":"wowMktPrice(C39)*D39","v":0},{"$f":"wowMktPrice(A39)","v":0},{"$f":"wowmed14price(A39)","v":0},0,0,null,{"$error":"#DIV/0!"},0]
["Enchant Neck - Breath of Versatility",null,"Luminous Shard",1,null,{"$f":"wowMktPrice(C40)*D40","v":0},{"$f":"wowMktPrice(A40)","v":0},{"$f":"wowmed14price(A40)","v":0},0,0,null,{"$error":"#DIV/0!"},0]
["Lesser Cloak Enchants"]
["Enchant Cloak - Breath of Critical Strike",null,"Luminous Shard",1,null,{"$f":"wowMktPrice(C42)*D42","v":0},{"$f":"wowMktPrice(A42)","v":0},{"$f":"wowmed14price(A42)","v":0},0,0,null,{"$error":"#DIV/0!"},0]
["Enchant Cloak - Breath of Haste",null,"Luminous Shard",1,null,{"$f":"wowMktPrice(C43)*D43","v":0},{"$f":"wowMktPrice(A43)","v":0},{"$f":"wowmed14price(A43)","v":0},0,0,null,{"$error":"#DIV/0!"},0]
["Enchant Cloak - Breath of Mastery",null,"Luminous Shard",1,null,{"$f":"wowMktPrice(C44)*D44","v":0},{"$f":"wowMktPrice(A44)","v":0},{"$f":"wowmed14price(A44)","v":0},0,0,null,{"$error":"#DIV/0!"},0]
["Enchant Cloak - Breath of Multistrike",null,"Luminous Shard",1,null,{"$f":"wowMktPrice(C45)*D45","v":0},{"$f":"wowMktPrice(A45)","v":0},{"$f":"wowmed14price(A45)","v":0},0,0,null,{"$error":"#DIV/0!"},0]
["Enchant Cloak - Breath of Versatility",null,"Luminous Shard",1,null,{"$f":"wowMktPrice(C46)*D46","v":0},{"$f":"wowMktPrice(A46)","v":0},{"$f":"wowmed14price(A46)","v":0},0,0,null,{"$error":"#DIV/0!"},0]

{"sheet":"Inscription","index":9,"n_rows":45,"n_cols":16,"rows_kept":45,"cut":false,"hidden":false,"merged":[]}
[]
["Inscription","War Paints","Material #1","Mat #1 Qty","Material #2","Mat #2 Qty","Total Mats Costs","Market Value","Historic Market Value","∆ MV","Profit","Profit per War Paint","ROI","Quantity Posted",null,"Cooldown Yield"]
["Epic iLvl 630 Weapons",null,null,null,null,null,null,null,null,null,null,null,null,null,null,4]
["Warmaster's Firestick",100,null,null,null,null,{"$f":"B4*$P$9","v":0},{"$f":"wowMktPrice(A4)","v":0},{"$f":"wowmed14price(A4)","v":0},{"$f":"H4-I4","v":0},{"$f":"H4-G4","v":0},{"$f":"K4/B4","v":0},{"$f":"((0.95*H4)-G4)/(G4)","v":{"$error":"#DIV/0!"}},{"$f":"wowQty(#REF!)","v":0}]
["Crystalfire Spellstaff",100,null,null,null,null,{"$f":"B5*$P$9","v":0},{"$f":"wowMktPrice(A5)","v":0},{"$f":"wowmed14price(A5)","v":0},{"$f":"H5-I5","v":0},{"$f":"H5-G5","v":0},{"$f":"K5/B5","v":0},{"$f":"((0.95*H5)-G5)/(G5)","v":{"$error":"#DIV/0!"}},{"$f":"wowQty(#REF!)","v":0},null,"Daily Work Order Yield"]
["Shadowtome",50,null,null,null,null,0,0,0,0,0,0,{"$error":"#DIV/0!"},{"$f":"wowQty(#REF!)","v":0},null,6]
["Etched-Blade Warstaff",100,null,null,null,null,0,0,0,0,0,0,{"$error":"#DIV/0!"},{"$f":"wowQty(#REF!)","v":0}]
["Darkmoon Cards",null,null,null,null,null,null,null,null,null,null,null,null,null,null,"Cost Per War Paint"]
["Darkmoon Card of Draenor",10,null,null,null,null,0,{"$f":"B43","v":0},"N/A","N/A",0,0,{"$error":"#DIV/0!"},{"$f":"wowQty(A9)","v":0},null,{"$f":"(($P$13*10) +( ($P$13*2)*6))/($P$3+$P$6)","v":0}]
["Trinket Upgrade Tokens"]
["Inferno Tarot",150,"Sorcerous Water",30,"Savage Blood",15,{"$f":"wowMktPrice(C11)*D11+wowMktPrice(E11)*F11+B11*$P$13","v":0},{"$f":"wowMktPrice(A11)","v":0},{"$f":"wowmed14price(A11)","v":0},0,0,0,{"$error":"#DIV/0!"},{"$f":"wowQty(A11)","v":0},null,"Nominal Cost of"]
["Molten Tarot",200,"Sorcerous Earth",40,"Savage Blood",15,{"$f":"wowMktPrice(C12)*D12+wowMktPrice(E12)*F12+B12*$P$13","v":0},{"$f":"wowMktPrice(A12)","v":0},{"$f":"wowmed14price(A12)","v":0},0,0,0,{"$error":"#DIV/0!"},{"$f":"wowQty(A12)","v":0},null,"Cerulean Pigment"]
["Weapon Upgrade Tokens",null,null,null,null,null,null,null,null,null,null,null,null,null,null,{"$f":"MIN(wowMktPrice(\"Fireweed\"),wowMktPrice(\"Frostweed\"),wowMktPrice(\"Starflower\"),wowMktPrice(\"Nagrand Arrowbloom\"),wowMktPrice(\"Gorgrond Flytrap\"),wowMktPrice(\"Talador Orchid\"))*2","v":0}]
["Mystical Crystal",150,"Sorcerous Water",30,"Savage Blood",15,{"$f":"wowMktPrice(C14)*D14+wowMktPrice(E14)*F14+B14*$P$13","v":0},{"$f":"wowMktPrice(A14)","v":0},{"$f":"wowmed14price(A14)","v":0},0,0,0,{"$error":"#DIV/0!"},{"$f":"wowQty(A14)","v":0}]
["Glorious Crystal",200,"Sorcerous Earth",40,"Savage Blood",15,{"$f":"wowMktPrice(C15)*D15+wowMktPrice(E15)*F15+B15*$P$13","v":0},{"$f":"wowMktPrice(A15)","v":0},{"$f":"wowmed14price(A15)","v":0},0,0,0,{"$error":"#DIV/0!"},{"$f":"wowQty(A15)","v":0}]
["Reroll Item"]
["Volatile Crystal",10,"Cerulean Pigment",5,null,null,{"$f":"wowMktPrice(C17)*D17+wowMktPrice(E17)*F17+B17*$P$13","v":0},{"$f":"wowMktPrice(A17)","v":0},{"$f":"wowmed14price(A17)","v":0},0,0,0,{"$error":"#DIV/0!"},{"$f":"wowQty(A17)","v":0}]
["Other Items"]
["Ocean Tarot",null,"Cerulean Pigment",20,null,null,{"$f":"wowMktPrice(C19)*D19+wowMktPrice(E19)*F19+B19*$P$13","v":0},{"$f":"wowMktPrice(A19)","v":0},{"$f":"wowmed14price(A19)","v":0},0,0,null,{"$error":"#DIV/0!"},{"$f":"wowQty(A19)","v":0}]
["Laughing Tarot",null,"Cerulean Pigment",20,null,null,{"$f":"wowMktPrice(C20)*D20+wowMktPrice(E20)*F20+B20*$P$13","v":0},{"$f":"wowMktPrice(A20)","v":0},{"$f":"wowmed14price(A20)","v":0},0,0,null,{"$error":"#DIV/0!"},{"$f":"wowQty(A20)","v":0}]
["Savage Tarot",null,"Cerulean Pigment",20,null,null,{"$f":"wowMktPrice(C21)*D21+wowMktPrice(E21)*F21+B21*$P$13","v":0},{"$f":"wowMktPrice(A21)","v":0},{"$f":"wowmed14price(A21)","v":0},0,0,null,{"$error":"#DIV/0!"},{"$f":"wowQty(A21)","v":0}]
["Card of Omens",0.5,null,null,null,null,{"$f":"wowMktPrice(C22)*D22+wowMktPrice(E22)*F22+B22*$P$13","v":0},{"$f":"wowMktPrice(A22)","v":0},{"$f":"wowmed14price(A22)","v":0},0,0,0,{"$error":"#DIV/0!"},{"$f":"wowQty(A22)","v":0}]
["Darkmoon Summary"]
[]
["Trinkets","Market Value"]
["Knight's Badge",{"$f":"wowMktPrice(A26)","v":0}]
["Sandman's Pouch",{"$f":"wowMktPrice(A27)","v":0}]
["Winged Hourglass",{"$f":"wowMktPrice(A28)","v":0}]
["Skull of War",{"$f":"wowMktPrice(A29)","v":0}]
[]
["Joker Cards"]
["Iron Joker",{"$f":"wowMktPrice(A32)","v":0}]
["Moon Joker",{"$f":"wowMktPrice(A33)","v":0}]
["Visions Joker",{"$f":"wowMktPrice(A34)","v":0}]
["War Joker",{"$f":"wowMktPrice(A35)","v":0}]
[]
["Aggregate Card Values"]
["Iron Card",{"$f":"(wowMktPrice(\"Ace of Iron\") +wowMktPrice(\"Two of Iron\") +wowMktPrice(\"Three of Iron\") +wowMktPrice(\"Four of Iron\") +wowMktPrice(\"Five of Iron\") +wowMktPrice(\"Six of Iron\") +wowMktPrice(\"Seven of Iron\") +wowMktPrice(\"Eight of Iron\"))/8","v":0}]
["Moon Card",{"$f":"(wowMktPrice(\"Ace of the Moon\") +wowMktPrice(\"Two of the Moon\") +wowMktPrice(\"Three of the Moon\") +wowMktPrice(\"Four of the Moon\") +wowMktPrice(\"Five of the Moon\") +wowMktPrice(\"Six of the Moon\") +wowMktPrice(\"Seven of the Moon\") +wowMktPrice(\"Eight of the Moon\"))/8","v":0}]
["Visions Card",{"$f":"(wowMktPrice(\"Ace of Visions\") +wowMktPrice(\"Two of Visions\") +wowMktPrice(\"Three of Visions\") +wowMktPrice(\"Four of Visions\") +wowMktPrice(\"Five of Visions\") +wowMktPrice(\"Six of Visions\") +wowMktPrice(\"Seven of Visions\") +wowMktPrice(\"Eight of Visions\"))/8","v":0}]
["War Card",{"$f":"(wowMktPrice(\"Ace of War\") +wowMktPrice(\"Two of War\") +wowMktPrice(\"Three of War\") +wowMktPrice(\"Four of War\") +wowMktPrice(\"Five of War\") +wowMktPrice(\"Six of War\") +wowMktPrice(\"Seven of War\") +wowMktPrice(\"Eight of War\"))/8","v":0}]
[]
["MV of Any Non-Joker Card",{"$f":"SUM(B38:B41)/4","v":0}]
["Cost of Non-Joker Card",{"$f":"P9*10","v":0}]
["Profit Per Card",{"$f":"B43-B44","v":0}]

{"sheet":"Cooking","index":10,"n_rows":25,"n_cols":17,"rows_kept":25,"cut":false,"hidden":false,"merged":[[11,4,15,6]]}
[]
["Cooking","Material #1","Mat #1 Qty","Material #2","Mat #2 Qty","Material #3","Mat #3 Qty","Total Mats Costs","Recommendation","Market Value","Historic Market Value","∆ MV","Profit","ROI","Quantity Posted"]
["+100 Stat Food",null,null,null,null,null,null,null,null,null,null,null,null,null,null,null,"Avg Servings"]
["Blackrock Barbecue","Blackrock Ham",5,"Grilled Gulper",5,"Fireweed",1,{"$f":"IF(I4=\"Buy +75 off AH\",((wowMktPrice(B4)*C4 + wowMktPrice(D4)*E4 + wowMktPrice(F4)*G4)/$Q$5),((H11*5+H17*5)/$Q$5))","v":0},{"$f":"IF(((wowMktPrice(B4)*C4 + wowMktPrice(D4)*E4 + wowMktPrice(F4)*G4)/$Q$5)>((H11*5+H17*5)/$Q$5),\"Cook +75 Yourself\", IF(AND(O11>0,O17>0),\"Buy +75 off AH\",\"Not Enough at AH\"))","v":"Not Enough at AH"},{"$f":"wowMktPrice(A4)","v":0},{"$f":"wowmed14price(A4)","v":0},{"$f":"J4-K4","v":0},{"$f":"J4-H4","v":0},{"$f":"((0.95*J4)-H4)/(H4)","v":{"$error":"#DIV/0!"}},{"$f":"wowQty(A4)","v":0},null,"Per Recipe"]
["Calamari Crepes","Rylak Crepes",5,"Fiery Calamari",5,"Nagrand Arrowbloom",1,0,"Not Enough at AH",0,0,{"$f":"J5-K5","v":0},{"$f":"J5-H5","v":0},{"$f":"((0.95*J5)-H5)/(H5)","v":{"$error":"#DIV/0!"}},0,null,4]
["Frosty Stew","Pan-Seared Talbuk",5,"Sturgeon Stew",5,"Frostweed",1,0,"Not Enough at AH",0,0,0,0,{"$error":"#DIV/0!"},0]
["Gorgrond Chowder","Clefthoof Sausages",5,"Skulker Chowder",5,"Gorgrond Flytrap",1,0,"Not Enough at AH",0,0,0,0,{"$error":"#DIV/0!"},0]
["Sleeper Surprise","Braised Riverbeast",5,"Fat Sleeper Cakes",5,"Starflower",1,0,"Not Enough at AH",0,0,0,0,{"$error":"#DIV/0!"},0]
["Talador Surf and Turf","Hearty Elekk Steak",5,"Steamed Scorpion",5,"Talador Orchid",1,0,"Not Enough at AH",0,0,0,0,{"$error":"#DIV/0!"},0]
["+75 Stat Food"]
["Blackrock Ham","Raw Boar Meat",5,null,null,null,null,{"$f":"(wowMktPrice(B11)*C11)/$Q$5","v":0},null,{"$f":"wowMktPrice(A11)","v":0},{"$f":"wowmed14price(A11)","v":0},0,0,{"$error":"#DIV/0!"},{"$f":"wowQty(A11)","v":0}]
["Rylak Crepes","Rylak Egg",5,null,"Note: +100 Stat Food Materials Costs are programmed to choose the cheapest route available between buying the necessary +75 stat food off the AH or making it yourself.",null,null,0,null,0,0,0,0,{"$error":"#DIV/0!"},0]
["Pan-Seared Talbuk","Raw Talbuk Meat",5,null,null,null,null,0,null,0,0,0,0,{"$error":"#DIV/0!"},0]
["Clefthoof Sausages","Raw Clefthoof Meat",5,null,null,null,null,0,null,0,0,0,0,{"$error":"#DIV/0!"},0]
["Braised Riverbeast","Raw Riverbeast Meat",5,null,null,null,null,0,null,0,0,0,0,{"$error":"#DIV/0!"},0]
["Hearty Elekk Steak","Raw Elekk Meat",5,null,null,null,null,0,null,0,0,0,0,{"$error":"#DIV/0!"},0]
["Grilled Gulper","Abyssal Gulper Eel Flesh",10,null,null,null,null,0,null,0,0,0,0,{"$error":"#DIV/0!"},0]
["Fiery Calamari","Fire Ammonite Tentacle",10,null,null,null,null,0,null,0,0,0,0,{"$error":"#DIV/0!"},0]
["Sturgeon Stew","Blind Lake Sturgeon Flesh",10,null,null,null,null,0,null,0,0,0,0,{"$error":"#DIV/0!"},0]
["Skulker Chowder","Jawless Skulker Flesh",10,null,null,null,null,0,null,0,0,0,0,{"$error":"#DIV/0!"},0]
["Fat Sleeper Cakes","Fat Sleeper Flesh",10,null,null,null,null,0,null,0,0,0,0,{"$error":"#DIV/0!"},0]
["Steamed Scorpion","Sea Scorpion Segment",10,null,null,null,null,0,null,0,0,0,0,{"$error":"#DIV/0!"},0]
["Feasts"]
["Feast of the Waters","10 of each Fish Flesh",null,"Feeds 10 People",null,null,null,{"$f":"(wowMktPrice(B17)+wowMktPrice(B18)+wowMktPrice(B19)+wowMktPrice(B20)+wowMktPrice(B21)+wowMktPrice(B22))*10","v":0},null,{"$f":"wowMktPrice(A24)","v":0},{"$f":"wowmed14price(A24)","v":0},0,0,{"$error":"#DIV/0!"},{"$f":"wowQty(A24)","v":0}]
["Feast of Blood","10 of Each Raw Meat",null,"Feeds 30 People",null,null,null,{"$f":"(wowMktPrice(B11)+wowMktPrice(B12)+wowMktPrice(B13)+wowMktPrice(B14)+wowMktPrice(B15)+wowMktPrice(B16))*10","v":0},null,{"$f":"wowMktPrice(A25)","v":0},{"$f":"wowmed14price(A25)","v":0},0,0,{"$error":"#DIV/0!"},{"$f":"wowQty(A25)","v":0}]

{"sheet":"Materials","index":11,"n_rows":47,"n_cols":6,"rows_kept":47,"cut":false,"hidden":false,"merged":[]}
[]
["Materials","Market Value","Historic Market Value","∆ MV","Standard Deviation","Qty Posted"]
["Herbs"]
["Fireweed",{"$f":"wowMktPrice(A4)","v":0},{"$f":"wowmed14price(A4)","v":0},{"$f":"B4-C4","v":0},{"$f":"wowStd14Price(A4)","v":0},{"$f":"wowQty(A4)","v":0}]
["Frostweed",{"$f":"wowMktPrice(A5)","v":0},{"$f":"wowmed14price(A5)","v":0},{"$f":"B5-C5","v":0},{"$f":"wowStd14Price(A5)","v":0},{"$f":"wowQty(A5)","v":0}]
["Starflower",0,0,0,0,0]
["Nagrand Arrowbloom",0,0,0,0,0]
["Gorgrond Flytrap",0,0,0,0,0]
["Talador Orchid",0,0,0,0,0]
["Ore"]
["True Iron Ore",0,0,0,0,0]
["Blackrock Ore",0,0,0,0,0]
["Leather & Fur"]
["Raw Beast Hide",0,0,0,0,0]
["Sumptuous Fur",0,0,0,0,0]
["Sorcerous Elements"]
["Sorcerous Fire",0,0,0,0,0]
["Sorcerous Earth",0,0,0,0,0]
["Sorcerous Water",0,0,0,0,0]
["Sorcerous Air",0,0,0,0,0]
["Fish Flesh"]
["Crescent Saberfish Flesh",{"$f":"wowMktPrice(A22)","v":0},0,0,0,0]
["Blackwater Whiptail Flesh",0,0,0,0,0]
["Abyssal Gulper Eel Flesh",0,0,0,0,0]
["Blind Lake Sturgeon Flesh",0,0,0,0,0]
["Fat Sleeper Flesh",0,0,0,0,0]
["Fire Ammonite Tentacle",0,0,0,0,0]
["Jawless Skulker Flesh",0,0,0,0,0]
["Sea Scorpion Segment",0,0,0,0,0]
["Meats"]
["Raw Elekk Meat",0,0,0,0,0]
["Raw Boar Meat",0,0,0,0,0]
["Raw Talbuk Meat",0,0,0,0,0]
["Raw Riverbeast Meat",0,0,0,0,0]
["Raw Clefthoof Meat",0,0,0,0,0]
["Rylak Egg",0,0,0,0,0]
["Enchanting"]
["Draenic Dust",0,0,0,0,0]
["Small Luminous Shard",0,0,0,0,0]
["Luminous Shard",0,0,0,0,0]
["Fractured Temporal Crystal",0,0,0,0,0]
["Temporal Crystal",0,0,0,0,0]
["Other"]
["Crescent Oil",0,0,0,0,0]
["Savage Blood",0,0,0,0,0]
["Alchemical Catalyst",{"$f":"wowMktPrice(A46)","v":0},{"$f":"wowmed14price(A46)","v":0},{"$f":"B46-C46","v":0},{"$f":"wowStd14Price(A46)","v":0},{"$f":"wowQty(A46)","v":0}]
["Savage Feast",{"$f":"wowMktPrice(A47)","v":0},{"$f":"wowmed14price(A47)","v":0},0,{"$f":"wowStd14Price(A47)","v":0},{"$f":"wowQty(A47)","v":0}]